Workbook

Sheet PORTADA
B2: 14896532
B12: www.acfmsc.com
B13: 14896532
R88: LEN2285
R93: LEN2285
U261: RAN##67

Sheet MENU (hidden)
B5: Descripción | C5: Nombre de la hoja
B6: Obligaciones de los patrones | C6: OBLIGACIONES
B7: Obligaciones laborales | C7: LABORAL
B8: Determinación de las bases de ISR | C8: BASES
B9: Apendice sies guía de llenado del SAT | C9: APEND6
B10: Analisis apéndice sies guía de llenado del SAT | C10: ANALISIS
B11: Determinación del salario base de cotización | C11: FSBC
B12: Determinación del salario diario integrado | C12: SDI
B13: Determinación de la retención del IMSS | C13: RIMSS
B14: Retención de ISR e IMSS | C14: RISR_IMSS
B15: Cuotas IMSS | C15: CUOTASIMSS
B16: Determinación de la cuota de Cesantía en Edad Avanzada y Vejez | C16: CYVSS
B17: Determinación de las cuotas obrero patronales | C17: IMSS
B18: Determinación de la cuota obrero patronal MENSUAL | C18: EMISIONM
B19: Determinación de la cuota obrero patronal BIMESTRAL | C19: EMISIONB
B20: Resumen cuotas obrego patronales | C20: RESUMEN IMSS
B21: Tarifa ISR 2025 | C21: TARIFA
B22: Datos generales para los cálculos | C22: GENERALES1

Sheet OBLIGACIONES (hidden)
D4: Ir al MENÚ
B6: Concepto | C6: Disposición | D6: Fundamento
B7: Trabajador | C7: Trabajador es la persona física que presta a otra, física o moral, un trabajo personal subordinado. Para los efectos de esta disposición, se entiende por trabajo toda actividad humana, intelectual o material, independientemente del grado de preparación técnica requerido por cada profesión u oficio. | D7: Artículo 8 LFT
B8: Trabajador de confianza | C8: La categoría de trabajador de confianza depende de la naturaleza de las funciones desempeñadas y no de la designación que se dé al puesto. Son funciones de confianza las de dirección, inspección, vigilancia y fiscalización, cuando tengan carácter general, y las que se relacionen con trabajos personales del patrón dentro de la empresa o establecimiento. | D8: Artículo 9 LFT
B9: Patrón | C9: Patrón es la persona física o moral que utiliza los servicios de uno o varios trabajadores. Si el trabajador, conforme a lo pactado o a la costumbre, utiliza los servicios de otros trabajadores, el patrón de aquél, lo será también de éstos. | D9: Artículo 10 LFT
B10: Obligaciones | C10: Fiscales
C11: Efectuar las retenciones señaladas en el artículo 96 de esta Ley | D11: Artículo 99 LISR
C12: Calcular el impuesto anual de las personas que les hubieren prestado servicios subordinados, en los términos del artículo 97 de esta Ley.
C13: Expedir y entregar comprobantes fiscales a las personas que reciban pagos por los conceptos a que se refiere este Capítulo, en la fecha en que se realice la erogación correspondiente
C14: Solicitar, en su caso, las constancias y los comprobantes a que se refiere la fracción anterior, a las personas que contraten para prestar servicios subordinados, a más tardar dentro del mes siguiente a aquél en que se inicie la prestación del servicio y cerciorarse que estén inscritos en el Registro Federal de Contribuyentes.
C15: Solicitar a las personas que contraten para prestar servicios subordinados, les proporcionen los datos necesarios a fin de inscribirlas en el Registro Federal de Contribuyentes, o bien cuando ya hubieran sido inscritas con anterioridad, les proporcionen su clave del citado registro.
C16: Proporcionar a más tardar el 15 de febrero de cada año, a las personas a quienes les hubieran prestado servicios personales subordinados, constancia y el comprobante fiscal del monto total de los viáticos pagados en el año de calendario de que se trate, por los que se aplicó lo dispuesto en el artículo 93, fracción XVII de esta Ley.
C17: Presentar, ante las oficinas autorizadas a más tardar el 15 de febrero de cada año, declaración proporcionando información sobre las personas que hayan ejercido la opción a que se refiere la fracción VII del artículo 94 de esta Ley, en el año de calendario anterior, conforme a las reglas generales que al efecto expida el Servicio de Administración Tributaria.
C18: Seguro social
C19: Registrarse e inscribir a sus trabajadores en el Instituto, comunicar sus altas y bajas, las modificaciones de su salario y los demás datos, dentro de plazos no mayores de cinco días hábiles | D19: Artículo 15 LSS
C20: Llevar registros, tales como nóminas y listas de raya en las que se asiente invariablemente el número de días trabajados y los salarios percibidos por sus trabajadores
C21: Determinar las cuotas obrero patronales a su cargo y enterar su importe al Instituto
C22: Proporcionar al Instituto los elementos necesarios para precisar la existencia, naturaleza y cuantía de las obligaciones a su cargo establecidas por esta Ley y los reglamentos que correspondan
C23: Permitir las inspecciones y visitas domiciliarias que practique el Instituto, las que se sujetarán a lo establecido por esta Ley, el Código y los reglamentos respectivos
C24: Tratándose de patrones que se dediquen en forma permanente o esporádica a la actividad de la construcción, deberán expedir y entregar a cada trabajador constancia escrita del número de días trabajados y del salario percibido, semanal o quincenalmente, conforme a los períodos de pago establecidos, las cuales, en su caso, podrán ser exhibidas por los trabajadores para acreditar sus derechos.
C25: Cumplir con las obligaciones que les impone el capítulo sexto del Título II de esta Ley, en relación con el seguro de retiro, cesantía en edad avanzada y vejez
C26: Cumplir con las demás disposiciones de esta Ley y sus reglamentos
C27: Expedir y entregar, tratándose de personas trabajadoras temporales o eventuales de la ciudad o del campo, constancia de los días laborados
C28: INFONAVIT
C29: Proceder a inscribirse e inscribir a sus trabajadores en el Instituto y dar los avisos a que se refiere el Artículo 31 de esta Ley | D29: Artículo 29 LINFONAVIT
C30: Determinar el monto de las aportaciones del cinco por ciento sobre el salario de los trabajadores a su servicio y efectuar el pago en las entidades receptoras que actúen por cuenta y orden del Instituto
C31: Hacer los descuentos a sus trabajadores en sus salarios, conforme a lo previsto en los artículos 97 y 110 de la Ley Federal del Trabajo
C32: Proporcionar al Instituto los elementos necesarios para precisar la existencia, naturaleza y cuantía de las obligaciones a su cargo, establecidas en esta Ley y sus disposiciones reglamentarias
C33: Permitir las inspecciones y visitas domiciliarias que practique el Instituto, las que se sujetarán a lo establecido por esta Ley, el Código Fiscal de la Federación y sus disposiciones reglamentarias.
C34: Expedir y entregar, semanal o quincenalmente, a cada trabajador constancia escrita del número de días trabajados y del salario percibido, conforme a los períodos de pago establecidos, tratándose de patrones que se dediquen en forma permanente o esporádica a la actividad de la construcción
C35: Presentar al Instituto copia con firma autógrafa del informe sobre la situación fiscal del contribuyente con los anexos referentes a las contribuciones por concepto de aportaciones patronales de conformidad con lo dispuesto en el Reglamento del Código Fiscal de la Federación, cuando en los términos de dicho Código, estén obligados a dictaminar por contador público autorizado sus estados financieros.
C36: Las demás previstas en la Ley y sus reglamentos
C37: Ley Federal del Trabajo

Sheet BASES (hidden)
D4: Valor de la UMA | E4: 113.14 | G4: Ir al MENÚ
D7: Percepción | F7: Deducción
B8: c_TipoPercepcion | C8: Descripción | D8: Gravado | E8: Exento | F8: Gravado | G8: Exento
B9: 1 | C9: Sueldos, Salarios Rayas y Jornales | H9: =IF(E9>0,HYPERLINK("#"& "APEND6!B17","Ver apéndice"),"") -> 
B10: 12 | C10: Anticipo de salarios
B11: 13 | C11: Pagos hechos con exceso al trabajador
B12: 20 | C12: Ausencia (Ausentismo)
B13: 099 | C13: Ajuste a ingresos por sueldos y salarios gravados
B14: (=) Neto pagado clave 001 | D14: =IFERROR((D9+E9)-SUM(F10:F13),0) -> 0
B15: (=) Base para ISR clave 001 | D15: =IFERROR(D9-SUM(F10:F13),0) -> 0
B17: 2 | C17: Gratificación Anual (Aguinaldo) | H17: =IF(E17>0,HYPERLINK("#"& "APEND6!E18","Ver apéndice"),"") -> 
B18: 24 | C18: Ajuste en Gratificación Anual (Aguinaldo) Exento
B19: 25 | C19: Ajuste en Gratificación Anual (Aguinaldo) Gravado
B20: (=) Neto pagado clave 002 | D20: =IFERROR(D17+E17-G18-F19,0) -> 0
B21: (=) Base para ISR clave 002 | D21: =IFERROR(D17-F19,0) -> 0
B23: 3 | C23: Participación de los Trabajadores en las Utilidades PTU | H23: =IF(E23>0,HYPERLINK("#"& "APEND6!E19","Ver apéndice"),"") -> 
B24: 26 | C24: Ajuste en Participación de los Trabajadores en las Utilidades PTU Exento
B25: 27 | C25: Ajuste en Participación de los Trabajadores en las Utilidades PTU Gravado
B26: (=) Neto pagado clave 003 | D26: =IFERROR(D23+E23-G24-F25,0) -> 0
B27: (=) Base para ISR clave 003 | D27: =IFERROR(D23-F25,0) -> 0
B29: 4 | C29: Reembolso de Gastos Médicos Dentales y Hospitalarios
B30: 28 | C30: Ajuste en Reembolso de Gastos Médicos Dentales y Hospitalarios Exento
B31: (=) Neto pagado clave 004 | D31: =IFERROR(D29+E29-G30,0) -> 0
B32: (=) Base para ISR clave 004 | D32: =IFERROR(D29,0) -> 0
B34: 5 | C34: Fondo de Ahorro
B35: 29 | C35: Ajuste en Fondo de ahorro Exento
B36: 082 | C36: Ajuste en Fondo de ahorro Gravado
B37: (=) Neto pagado clave 005 | D37: =IFERROR(D34+E34-G35-F36,0) -> 0
B38: (=) Base para ISR clave 005 | D38: =IFERROR(D34-F36,0) -> 0
B40: 6 | C40: Caja de ahorro
B41: 30 | C41: Ajuste en Caja de ahorro Exento
B42: 083 | C42: Ajuste en Caja de ahorro Gravado
B43: (=) Neto pagado clave 006 | D43: =IFERROR(D40+E40-G41-F42,0) -> 0
B44: (=) Base para ISR clave 006 | D44: =IFERROR(D40-F42,0) -> 0
B46: 9 | C46: Contribuciones a Cargo del Trabajador Pagadas por el Patrón
B47: 31 | C47: Ajuste en Contribuciones a Cargo del Trabajador Pagadas por el Patrón Exento
B48: (=) Neto pagado clave 009 | D48: =IFERROR(D46+E46-G47,0) -> 0
B49: (=) Base para ISR clave 009 | D49: =IFERROR(D46,0) -> 0
B51: 10 | C51: Premios por puntualidad
B52: 32 | C52: Ajuste en Premios por puntualidad Gravado
B53: (=) Neto pagado clave 010 | D53: =IFERROR(D51+E51-F52,0) -> 0
B54: (=) Base para ISR clave 010 | D54: =IFERROR(D51-F52,0) -> 0
B56: 11 | C56: Prima de Seguro de vida
B57: 33 | C57: Ajuste en Prima de Seguro de vida Exento
B58: 084 | C58: Ajuste en Prima de Seguro de vida Gravado
B59: (=) Neto pagado clave 011 | D59: =IFERROR(D56+E56-G57-F58,0) -> 0
B60: (=) Base para ISR clave 011 | D60: =IFERROR(D56-F58,0) -> 0
B62: 12 | C62: Seguro de Gastos Médicos Mayores
B63: 34 | C63: Ajuste en Seguro de Gastos Médicos Mayores Exento
B64: 085 | C64: Ajuste en Seguro de Gastos Médicos Mayores Gravado
B65: (=) Neto pagado clave 012 | D65: =IFERROR(D62+E62-G63-F64,0) -> 0
B66: (=) Base para ISR clave 012 | D66: =IFERROR(D62-F64,0) -> 0
B68: 13 | C68: Cuotas Sindicales Pagadas por el Patrón
B69: 35 | C69: Ajuste en Cuotas Sindicales Pagadas por el Patrón Exento
B70: (=) Neto pagado clave 013 | D70: =IFERROR(D68+E68-G69,0) -> 0
B71: (=) Base para ISR clave 013 | D71: =IFERROR(D68,0) -> 0
B73: 14 | C73: Subsidios por incapacidad
B74: 36 | C74: Ajuste en Subsidios por incapacidad Exento
B75: 086 | C75: Ajuste en Subsidios por incapacidad Gravado
B76: (=) Neto pagado clave 014 | D76: =IFERROR(D73+E73-G74-F75,0) -> 0
B77: (=) Base para ISR clave 014 | D77: =IFERROR(D73-F75,0) -> 0
B79: 15 | C79: Becas para trabajadores y/o hijos
B80: 37 | C80: Ajuste en Becas para trabajadores y/o hijos Exento
B81: 087 | C81: Ajuste en Becas para trabajadores y/o hijos Gravado
B82: (=) Neto pagado clave 015 | D82: =IFERROR(D79+E79-G80-F81,0) -> 0
B83: (=) Base para ISR clave 015 | D83: =IFERROR(D79-F81,0) -> 0
B85: 19 | C85: Horas extra
B86: 38 | C86: Ajuste en Horas extra Exento
B87: 39 | C87: Ajuste en Horas extra Gravado
B88: (=) Neto pagado clave 019 | D88: =IFERROR(D85+E85-G86-F87,0) -> 0
B89: (=) Base para ISR clave 019 | D89: =IFERROR(D85-F87,0) -> 0
B91: 20 | C91: Prima dominical | H91: =IF(E91>0,HYPERLINK("#"& "APEND6!E31","Ver apéndice"),"") -> 
B92: 40 | C92: Ajuste en Prima dominical Exento
B93: 41 | C93: Ajuste en Prima dominical Gravado
B94: (=) Neto pagado clave 020 | D94: =IFERROR(D91+E91-G92-F93,0) -> 0
B95: (=) Base para ISR clave 020 | D95: =IFERROR(D91-F93,0) -> 0
B97: 21 | C97: Prima vacacional | H97: =IF(E97>0,HYPERLINK("#"& "APEND6!E32","Ver apéndice"),"") -> 
B98: 42 | C98: Ajuste en Prima vacacional Exento
B99: 43 | C99: Ajuste en Prima vacacional Gravado
B100: (=) Neto pagado clave 021 | D100: =IFERROR(D97+E97-G98-F99,0) -> 0
B101: (=) Base para ISR clave 021 | D101: =IFERROR(D97-F99,0) -> 0
B103: 24 | C103: Seguro de retiro
B104: 42 | C104: Ajuste en Prima vacacional Exento
B105: 43 | C105: Ajuste en Prima vacacional Gravado
B106: (=) Neto pagado clave 024 | D106: =IFERROR(D103+E103-G104-F105,0) -> 0
B107: (=) Base para ISR clave 024 | D107: =IFERROR(D103-F105,0) -> 0
B109: 26 | C109: Reembolso por funeral
B110: 51 | C110: Ajuste en Reembolso por funeral Exento
B111: (=) Neto pagado clave 026 | D111: =IFERROR(D109+E109-G110,0) -> 0
B112: (=) Base para ISR clave 026 | D112: =IFERROR(D109,0) -> 0
B114: 27 | C114: Cuotas de seguridad social pagadas por el patrón | H114: =IF(D114>0,HYPERLINK("#"& "APEND6!D35","Ver apéndice"),"") -> 
B115: 52 | C115: Ajuste en Cuotas de seguridad social pagadas por el patrón Exento
B116: (=) Neto pagado clave 027 | D116: =IFERROR(D114+E114-G115,0) -> 0
B117: (=) Base para ISR clave 027 | D117: =IFERROR(D114,0) -> 0
B119: 28 | C119: Comisiones
B120: 53 | C120: Ajuste en Comisiones Gravado
B121: (=) Neto pagado clave 028 | D121: =IFERROR(D119+E119-F120,0) -> 0
B122: (=) Base para ISR clave 028 | D122: =IFERROR(D119-F120,0) -> 0
B124: 29 | C124: Vales de despensa
B125: 54 | C125: Ajuste en Vales de despensa Exento
B126: 089 | C126: Ajuste en Vales de despensa Gravado
B127: (=) Neto pagado clave 029 | D127: =IFERROR(D124+E124-G125-F126,0) -> 0
B128: (=) Base para ISR clave 029 | D128: =IFERROR(D124-F126,0) -> 0
B130: 30 | C130: Vales de restaurante
B131: 55 | C131: Ajuste en Vales de restaurante Exento
B132: 090 | C132: Ajuste en Vales de restaurante Gravado
B133: (=) Neto pagado clave 030 | D133: =IFERROR(D130+E130-G131-F132,0) -> 0
B134: (=) Base para ISR clave 030 | D134: =IFERROR(D130-F132,0) -> 0
B136: 31 | C136: Vales de gasolina
B137: 56 | C137: Ajuste en Vales de gasolina Exento
B138: 091 | C138: Ajuste en Vales de gasolina Gravado
B139: (=) Neto pagado clave 031 | D139: =IFERROR(D136+E136-G137-F138,0) -> 0
B140: (=) Base para ISR clave 031 | D140: =IFERROR(D136-F138,0) -> 0
B142: 32 | C142: Vales de ropa
B143: 57 | C143: Ajuste en Vales de ropa Exento
B144: 092 | C144: Ajuste en Vales de ropa Gravado
B145: (=) Neto pagado clave 032 | D145: =IFERROR(D142+E142-G143-F144,0) -> 0
B146: (=) Base para ISR clave 032 | D146: =IFERROR(D142-F144,0) -> 0
B148: 33 | C148: Ayuda para renta
B149: 58 | C149: Ajuste en Ayuda para renta Exento
B150: 093 | C150: Ajuste en Ayuda para renta Gravado
B151: (=) Neto pagado clave 033 | D151: =IFERROR(D148+E148-G149-F150,0) -> 0
B152: (=) Base para ISR clave 033 | D152: =IFERROR(D148-F150,0) -> 0
B154: 34 | C154: Ayuda para artículos escolares
B155: 59 | C155: Ajuste en Ayuda para artículos escolares Exento
B156: 094 | C156: Ajuste en Ayuda para artículos escolares Gravado
B157: (=) Neto pagado clave 034 | D157: =IFERROR(D154+E154-G155-F156,0) -> 0
B158: (=) Base para ISR clave 034 | D158: =IFERROR(D154-F156,0) -> 0
B160: 35 | C160: Ayuda para anteojos
B161: 60 | C161: Ajuste en Ayuda para anteojos Exento
B162: 095 | C162: Ajuste en Ayuda para anteojos Gravado
B163: (=) Neto pagado clave 035 | D163: =IFERROR(D160+E160-G161-F162,0) -> 0
B164: (=) Base para ISR clave 035 | D164: =IFERROR(D160-F162,0) -> 0
B166: 36 | C166: Ayuda para transporte
B167: 61 | C167: Ajuste en Ayuda para transporte Exento
B168: 096 | C168: Ajuste en Ayuda para transporte Gravado
B169: (=) Neto pagado clave 036 | D169: =IFERROR(D166+E166-G167-F168,0) -> 0
B170: (=) Base para ISR clave 036 | D170: =IFERROR(D166-F168,0) -> 0
B172: 37 | C172: Ayuda para gastos de funeral
B173: 62 | C173: Ajuste en Ayuda para gastos de funeral Exento
B174: 097 | C174: Ajuste en Ayuda para gastos de funeral Gravado
B175: (=) Neto pagado clave 037 | D175: =IFERROR(D172+E172-G173-F174,0) -> 0
B176: (=) Base para ISR clave 037 | D176: =IFERROR(D172-F174,0) -> 0
B178: 38 | C178: Otros ingresos por salarios
B179: 63 | C179: Ajuste en Otros ingresos por salarios Exento
B180: 64 | C180: Ajuste en Otros ingresos por salarios Gravado
B181: (=) Neto pagado clave 038 | D181: =IFERROR(D178+E178-G179-F180,0) -> 0
B182: (=) Base para ISR clave 038 | D182: =IFERROR(D178-F180,0) -> 0
B184: 047 | C184: Alimentación diferentes a los establecidos en el Art 94 último párrafo LISR
B185: 74 | C185: Ajuste en Alimentación Exento
B186: 75 | C186: Ajuste en Alimentación Gravado
B187: (=) Neto pagado clave 047 | D187: =IFERROR(D184+E184-G185-F186,0) -> 0
B188: (=) Base para ISR clave 047 | D188: =IFERROR(D184-F186,0) -> 0
B190: 48 | C190: Habitación
B191: 76 | C191: Ajuste en Habitación Exento
B192: 77 | C192: Ajuste en Habitación Gravado
B193: (=) Neto pagado clave 048 | D193: =IFERROR(D190+E190-G191-F192,0) -> 0
B194: (=) Base para ISR clave 048 | D194: =IFERROR(D190-F192,0) -> 0
B196: 49 | C196: Premios por asistencia
B197: 78 | C197: Ajuste en Premios por asistencia
B198: (=) Neto pagado clave 049 | D198: =IFERROR(D196+E196-F197,0) -> 0
B199: (=) Base para ISR clave 049 | D199: =IFERROR(D196-F197,0) -> 0
B201: 50 | C201: Viáticos
B202: 80 | C202: Ajuste en Viáticos gravados
B203: 100 | C203: Ajuste en Viáticos exentos
B204: (=) Neto pagado clave 050 | D204: =IFERROR(D201+E201-G202-F203,0) -> 0
B205: (=) Base para ISR clave 050 | D205: =IFERROR(D201-F203,0) -> 0
C208: Base para ISR
C209: Periodicidad de pago para el cálculo

Sheet APEND6 (hidden)
B4: Para el TipoRegimen “002-Sueldos”
B5: Para el TipoRegimen “003- Jubilados”, “004-Pensionados” y “012- Jubilados o Pensionados”, específicamente para los casos de Jubilación en una sola exhibición
B6: Para el TipoRegimen “003- Jubilados”, “004-Pensionados” y “012- Jubilados o Pensionados”, específicamente para los casos de Jubilación en parcialidades
B7: Para el TipoRegimen “05-Asimilados Miembros Sociedades Cooperativas Produccion”, “06-Asimilados Integrantes Sociedades Asociaciones Civiles”, “07-Asimilados Miembros consejos”, “08-Asimilados comisionistas”, “09- Asimilados Honorarios”, “10-Asimilados acciones” y “11-Asimilados otros”
B8: Para el TipoRegimen “13- Indemnización o Separación”
B13: Para el TipoRegimen “002-Sueldos” | E13: Ir al MENÚ
B15: PERCEPCIONES | G15: DEDUCCIONES
B16: Tipo de percepción | C16: Descripción | D16: Gravado/ Exento | E16: Límite de exentos | G16: Tipo Deducción | H16: Descripción
B17: 1 | C17: Sueldos, Salarios Rayas y Jornales | D17: Gravado | G17: 2 | H17: ISR
B18: 2 | C18: Gratificación Anual (Aguinaldo) | D18: Gravado y Exento | E18: 30 UMA's Art. 93 fr. XIV de la LISR | G18: 6 | H18: Descuento por incapacidad
B19: 3 | C19: Participación de los Trabajadores en las Utilidades PTU | D19: Gravado y Exento | E19: 15 UMA's Art. 93 fr. XIV de la LISR | G19: 12 | H19: Anticipo de salarios
B20: 4 | C20: Reembolso de Gastos Médicos Dentales y Hospitalarios | D20: Gravado y Exento | G20: 20 | H20: Ausencia (Ausentismo)
B21: 5 | C21: Fondo de Ahorro | D21: Gravado y Exento | G21: 13 | H21: Pagos hechos con exceso al trabajador
B22: 6 | C22: Caja de ahorro | D22: Gravado y Exento | G22: 20 | H22: Ausencia (Ausentismo)
B23: 9 | C23: Contribuciones a Cargo del Trabajador Pagadas por el Patrón | D23: Gravado | G23: 24 | H23: Ajuste en Gratificación Anual (Aguinaldo) Exento
B24: 10 | C24: Premios por puntualidad | D24: Gravado | G24: 25 | H24: Ajuste en Gratificación Anual (Aguinaldo) Gravado
B25: 11 | C25: Prima de Seguro de vida | D25: Gravado y Exento | G25: 26 | H25: Ajuste en Participación de los Trabajadores en las Utilidades PTU Exento
B26: 12 | C26: Seguro de Gastos Médicos Mayores | D26: Gravado y Exento | G26: 27 | H26: Ajuste en Participación de los Trabajadores en las Utilidades PTU Gravado
B27: 13 | C27: Cuotas Sindicales Pagadas por el Patrón | D27: Gravado | G27: 28 | H27: Ajuste en Reembolso de Gastos Médicos Dentales y Hospitalarios Exento
B28: 14 | C28: Subsidios por incapacidad | D28: Gravado y Exento | G28: 29 | H28: Ajuste en Fondo de ahorro Exento
B29: 15 | C29: Becas para trabajadores y/o hijos | D29: Gravado y Exento | G29: 30 | H29: Ajuste en Caja de ahorro Exento
B30: 19 | C30: Horas extra | D30: Gravado y Exento | E30: 5 UMA's por cada semana de servicios Art. 93 fr. I de la LISR | G30: 31 | H30: Ajuste en Contribuciones a Cargo del Trabajador Pagadas por el Patrón Exento
B31: 20 | C31: Prima dominical | D31: Gravado y Exento | E31: 1 UMA por cada domingo laborado hasta 52 UMA'S Art. 93 fr. I de la LISR | G31: 32 | H31: Ajuste en Premios por puntualidad Gravado
B32: 21 | C32: Prima vacacional | D32: Gravado y Exento | E32: 15 UMA's Art. 93 fr. XIV de la LISR | G32: 33 | H32: Ajuste en Prima de Seguro de vida Exento
B33: 24 | C33: Seguro de retiro | D33: Gravado y Exento | G33: 34 | H33: Ajuste en Seguro de Gastos Médicos Mayores Exento
B34: 26 | C34: Reembolso por funeral | D34: Gravado y Exento | G34: 35 | H34: Ajuste en Cuotas Sindicales Pagadas por el Patrón Exento
B35: 27 | C35: Cuotas de seguridad social pagadas por el patrón | D35: Exento | G35: 36 | H35: Ajuste en Subsidios por incapacidad Exento
B36: 28 | C36: Comisiones | D36: Gravado | G36: 37 | H36: Ajuste en Becas para trabajadores y/o hijos Exento
B37: 29 | C37: Vales de despensa | D37: Gravado y Exento | G37: 38 | H37: Ajuste en Horas extra Exento
B38: 30 | C38: Vales de restaurante | D38: Gravado y Exento | G38: 39 | H38: Ajuste en Horas extra Gravado
B39: 31 | C39: Vales de gasolina | D39: Gravado y Exento | G39: 40 | H39: Ajuste en Prima dominical Exento
B40: 32 | C40: Vales de ropa | D40: Gravado y Exento | G40: 41 | H40: Ajuste en Prima dominical Gravado
B41: 33 | C41: Ayuda para renta | D41: Gravado y Exento | G41: 42 | H41: Ajuste en Prima vacacional Exento
B42: 34 | C42: Ayuda para artículos escolares | D42: Gravado y Exento | G42: 43 | H42: Ajuste en Prima vacacional Gravado
B43: 35 | C43: Ayuda para anteojos | D43: Gravado y Exento | G43: 48 | H43: Ajuste en Seguro de retiro Exento
B44: 36 | C44: Ayuda para transporte | D44: Gravado y Exento | G44: 51 | H44: Ajuste en Reembolso por funeral Exento
B45: 37 | C45: Ayuda para gastos de funeral | D45: Gravado y Exento | G45: 52 | H45: Ajuste en Cuotas de seguridad social pagadas por el patrón Exento
B46: 38 | C46: Otros ingresos por salarios | D46: Gravado y Exento | G46: 53 | H46: Ajuste en Comisiones Gravado
B47: 047 | C47: Alimentación diferentes a los establecidos en el Art 94 último párrafo LISR | D47: Gravado y Exento | G47: 54 | H47: Ajuste en Vales de despensa Exento
B48: 48 | C48: Habitación | D48: Gravado y Exento | G48: 55 | H48: Ajuste en Vales de restaurante Exento
B49: 49 | C49: Premios por asistencia | D49: Gravado | G49: 56 | H49: Ajuste en Vales de gasolina Exento
B50: 50 | C50: Viáticos | D50: Gravado y Exento | G50: 57 | H50: Ajuste en Vales de ropa Exento
G51: 58 | H51: Ajuste en Ayuda para renta Exento
B52: OTROS PAGOS | G52: 59 | H52: Ajuste en Ayuda para artículos escolares Exento
B53: Tipo | C53: Descripción | G53: 60 | H53: Ajuste en Ayuda para anteojos Exento
B54: 1 | C54: Reintegro de ISR pagado en exceso (siempre que no haya sido enterado al SAT). | G54: 61 | H54: Ajuste en Ayuda para transporte Exento
B55: 2 | C55: Subsidio para el empleo (efectivamente entregado al trabajador). | G55: 62 | H55: Ajuste en Ayuda para gastos de funeral Exento
B56: 4 | C56: Aplicación de saldo a favor por compensación anual. | G56: 63 | H56: Ajuste en Otros ingresos por salarios Exento
B57: 5 | C57: Reintegro de ISR retenido en exceso de ejercicio anterior (siempre que no haya sido enterado al SAT). | G57: 64 | H57: Ajuste en Otros ingresos por salarios Gravado
B58: 6 | C58: Alimentos en bienes (Servicios de comedor y comida) Art 94 último párrafo LISR. | G58: 71 | H58: Ajuste en Subsidio para el empleo (efectivamente entregado al trabajador)
B59: 7 | C59: ISR ajustado por subsidio. | G59: 74 | H59: Ajuste en Alimentación Exento
B60: 8 | C60: Subsidio efectivamente entregado que no correspondía (Aplica sólo cuando haya ajuste al cierre de mes en relación con el Apéndice 7 de la guía de llenado de nómina). | G60: 75 | H60: Ajuste en Alimentación Gravado
G61: 76 | H61: Ajuste en Habitación Exento
G62: 77 | H62: Ajuste en Habitación Gravado
G63: 78 | H63: Ajuste en Premios por asistencia
G64: 80 | H64: Ajuste en Viáticos gravados
G65: 82 | H65: Ajuste en Fondo de ahorro Gravado
G66: 83 | H66: Ajuste en Caja de ahorro Gravado
G67: 84 | H67: Ajuste en Prima de Seguro de vida Gravado
G68: 85 | H68: Ajuste en Seguro de Gastos Médicos Mayores Gravado
G69: 86 | H69: Ajuste en Subsidios por incapacidad Gravado
G70: 87 | H70: Ajuste en Becas para trabajadores y/o hijos Gravado
G71: 88 | H71: Ajuste en Seguro de retiro Gravado
G72: 89 | H72: Ajuste en Vales de despensa Gravado
G73: 90 | H73: Ajuste en Vales de restaurante Gravado
G74: 91 | H74: Ajuste en Vales de gasolina Gravado
G75: 92 | H75: Ajuste en Vales de ropa Gravado
G76: 93 | H76: Ajuste en Ayuda para renta Gravado
G77: 94 | H77: Ajuste en Ayuda para artículos escolares Gravado
G78: 95 | H78: Ajuste en Ayuda para anteojos Gravado
G79: 96 | H79: Ajuste en Ayuda para transporte Gravado
G80: 97 | H80: Ajuste en Ayuda para gastos de funeral Gravado
G81: 99 | H81: Ajuste a ingresos por sueldos y salarios gravados
G82: 100 | H82: Ajuste en Viáticos exentos
G83: 101 | H83: ISR Retenido de ejercicio anterior
G84: 107 | H84: Ajuste al Subsidio Causado
B88: Para el TipoRegimen “003- Jubilados”, “004-Pensionados” y “012- Jubilados o Pensionados”, específicamente para los casos de Jubilación en una sola exhibición
B90: PERCEPCIONES | G90: DEDUCCIONES
B91: Tipo de percepción | C91: Descripción | D91: Gravado/ Exento | E91: Límite de exentos | G91: Tipo Deducción | H91: Descripción
B92: 39 | C92: Jubilaciones, pensiones o haberes de retiro | D92: Gravado y Exento | E92: 90 UMA's elavadas al año Art. 171 RLISR | G92: 2 | H92: ISR
B93: 53 | C93: Pagos que se realicen a extrabajadores que obtengan una jubilación en una sola exhibición derivados de la ejecución de resoluciones judicial o de un laudo | D93: Gravado y Exento | G93: 65 | H93: Ajuste en Jubilaciones, pensiones o haberes de retiro en una sola exhibición Exento
G94: 66 | H94: Ajuste en Jubilaciones, pensiones o haberes de retiro en una sola exhibición Gravado
G95: 101 | H95: ISR Retenido de ejercicio anterior
G96: 105 | H96: Ajuste a pagos que se realicen a extrabajadores que obtengan una jubilación en una sola exhibición derivados de la ejecución de una resolución judicial o de un laudo gravados
G97: 106 | H97: Ajuste a pagos que se realicen a extrabajadores que obtengan una jubilación en una sola exhibición derivados de la ejecución de una resolución judicial o de un laudo exentos
B99: Para el TipoRegimen “003- Jubilados”, “004-Pensionados” y “012- Jubilados o Pensionados”, específicamente para los casos de Jubilación en parcialidades
B101: PERCEPCIONES | G101: DEDUCCIONES
B102: Tipo de percepción | C102: Descripción | D102: Gravado/ Exento | E102: Límite de exentos | G102: Tipo Deducción | H102: Descripción
B103: 44 | C103: Jubilaciones, pensiones o haberes de retiro en parcialidades | D103: Gravado y Exento | E103: 90 UMA's por año de servicio Art. 93 fracción XIII LISR | G103: 2 | H103: ISR
B104: 51 | C104: Pagos por gratificaciones, primas, compensaciones, recompensas u otros a extrabajadores derivados de jubilación en parcialidades | D104: Gravado | E104: N/A | G104: 69 | H104: Ajuste en Jubilaciones, pensiones o haberes de retiro en parcialidades Exento
B105: 52 | C105: Pagos que se realicen a extrabajadores que obtengan una jubilación en parcialidades derivados de la ejecución de resoluciones judicial o de un laudo | D105: Gravado y Exento | G105: 70 | H105: Ajuste en Jubilaciones, pensiones o haberes de retiro en parcialidades Gravado
G106: 101 | H106: ISR Retenido de ejercicio anterior
G107: 102 | H107: Ajuste a pagos por gratificaciones, primas, compensaciones, recompensas u otros a extrabajadores derivados de jubilación en parcialidades, gravados
G108: 103 | H108: Ajuste a pagos que se realicen a extrabajadores que obtengan una jubilación en parcialidades derivados de la ejecución de una resolución judicial o de un laudo gravados
G109: 104 | H109: Ajuste a pagos que se realicen a extrabajadores que obtengan una jubilación en parcialidades derivados de la ejecución de una resolución judicial o de un laudo exentos
B112: OTROS PAGOS
B113: Tipo | C113: Descripción
B114: 1 | C114: Reintegro de ISR pagado en exceso (siempre que no haya sido enterado al SAT).
B115: 4 | C115: Aplicación de saldo a favor por compensación anual.
B116: 5 | C116: Reintegro de ISR retenido en exceso de ejercicio anterior (siempre que no haya sido enterado al SAT).
B121: Para el TipoRegimen “05-Asimilados Miembros Sociedades Cooperativas Produccion”, “06-Asimilados Integrantes Sociedades Asociaciones Civiles”, “07-Asimilados Miembros consejos”, “08-Asimilados comisionistas”, “09- Asimilados Honorarios”, “10-Asimilados acciones” y “11-Asimilados otros”
B123: PERCEPCIONES | G123: DEDUCCIONES
B124: Tipo de percepción | C124: Descripción | D124: Gravado/ Exento | E124: Límite de exentos | G124: Tipo Deducción | H124: Descripción
B125: 45 | C125: Ingresos en acciones o títulos valor que representan bienes | D125: Gravado | E125: N/A | G125: 2 | H125: ISR
B126: 046 | C126: Ingresos asimilados a salarios | D126: Gravado | E126: N/A | G126: 73 | H126: Ajuste en Ingresos en acciones o títulos valor que representan bienes Gravado
G127: 98 | H127: Ajuste a ingresos asimilados a salarios gravados
B128: OTROS PAGOS | G128: 101 | H128: ISR Retenido de ejercicio anterior
B129: Tipo | C129: Descripción
B130: 1 | C130: Reintegro de ISR pagado en exceso (siempre que no haya sido enterado al SAT).
B131: 4 | C131: Aplicación de saldo a favor por compensación anual.
B132: 5 | C132: Reintegro de ISR retenido en exceso de ejercicio anterior (siempre que no haya sido enterado al SAT).
B137: Para el TipoRegimen “13- Indemnización o Separación”
B139: PERCEPCIONES | G139: DEDUCCIONES
B140: Tipo de percepción | C140: Descripción | D140: Gravado/ Exento | E140: Límite de exentos | G140: Tipo Deducción | H140: Descripción
B141: 22 | C141: Prima por antigüedad | D141: Gravado y Exento | E141: 90 UMA's por año de servicio Art. 93, fracción Xlll | G141: 2 | H141: ISR
B142: 23 | C142: Pagos por separación | D142: Gravado y Exento | E142: 90 UMA's por año de servicio Art. 93, fracción Xlll | G142: 44 | H142: Ajuste en Prima por antigüedad Exento
B143: 25 | C143: Indemnizaciones | D143: Gravado y Exento | E143: 90 UMA's por año de servicio Art. 93, fracción Xlll | G143: 45 | H143: Ajuste en Prima por antigüedad Gravado
G144: 46 | H144: Ajuste en Pagos por separación Exento
G145: 47 | H145: Ajuste en Pagos por separación Gravado
B146: OTROS PAGOS | G146: 49 | H146: Ajuste en Indemnizaciones Exento
B147: Tipo | C147: Descripción | G147: 50 | H147: Ajuste en Indemnizaciones Gravado
B148: 1 | C148: Reintegro de ISR pagado en exceso (siempre que no haya sido enterado al SAT). | G148: 67 | H148: Ajuste en Pagos por separación Acumulable
B149: 4 | C149: Aplicación de saldo a favor por compensación anual. | G149: 101 | H149: ISR Retenido de ejercicio anterior
B150: 5 | C150: Reintegro de ISR retenido en exceso de ejercicio anterior (siempre que no haya sido enterado al SAT).

Sheet ANALISIS (hidden)
E2: Ir al MENÚ
B4: Artículo 5 A LSS. Para los efectos de esta Ley, se entiende por: V. Trabajadores o trabajador: la persona física que la Ley Federal del Trabajo define como tal; VI. Trabajador permanente: aquél que tenga una relación de trabajo por tiempo indeterminado; VII. Trabajador eventual: aquél que tenga una relación de trabajo para obra determinada o por tiempo determinado en los términos de la Ley Federal del Trabajo
B5: Artículo 8o LFT.- Trabajador es la persona física que presta a otra, física o moral, un trabajo personal subordinado. Para los efectos de esta disposición, se entiende por trabajo toda actividad humana, intelectual o material, independientemente del grado de preparación técnica requerido por cada profesión u oficio.
B6: Artículo 5 A LSS. Para los efectos de esta Ley, se entiende por: XVIII. Salarios o salario: la retribución que la Ley Federal del Trabajo define como tal
B7: Artículo 82 LFT.- Salario es la retribución que debe pagar el patrón al trabajador por su trabajo.
B8: Artículo 27 LSS. El salario base de cotización se integra con los pagos hechos en efectivo por cuota diaria, gratificaciones, percepciones, alimentación, habitación, primas, comisiones, prestaciones en especie y cualquiera otra cantidad o prestación que se entregue al trabajador por su trabajo. Se excluyen como integrantes del salario base de cotización, dada su naturaleza, los siguientes conceptos:
B10: Artículo 30 LSS. Para determinar el salario diario base de cotización se estará a lo siguiente: I. Cuando además de los elementos fijos del salario el trabajador percibiera regularmente otras retribuciones periódicas de cuantía previamente conocida, éstas se sumarán a dichos elementos fijos
B13: Para el TipoRegimen “002-Sueldos”
B15: PERCEPCIONES
B16: Tipo de percepción | C16: Descripción | D16: Gravado/ Exento | E16: Límite de exentos | F16: ¿Elemento? | G16: ¿Integra al Salario Base de Cotización?
B17: 1 | C17: Sueldos, Salarios Rayas y Jornales | D17: Gravado | F17: Fijo | G17: Sí , Fundamento: Artículo 27 primer párrafo LSS
B18: 2 | C18: Gratificación Anual (Aguinaldo) | D18: Gravado y Exento | E18: 30 UMA's Art. 93 fr. XIV de la LISR | F18: Fijo | G18: Sí , Fundamento: Artículo 27 primer párrafo LSS
B19: Artículo 87 LFT.- Los trabajadores tendrán derecho a un aguinaldo anual que deberá pagarse antes del día veinte de diciembre, equivalente a quince días de salario, por lo menos. Los que no hayan cumplido el año de servicios, independientemente de que se encuentren laborando o no en la fecha de liquidación del aguinaldo, tendrán derecho a que se les pague la parte proporcional del mismo, conforme al tiempo que hubieren trabajado, cualquiera que fuere éste.
B20: 3 | C20: Participación de los Trabajadores en las Utilidades PTU | D20: Gravado y Exento | E20: 15 UMA's Art. 93 fr. XIV de la LISR | F20: Variable | G20: No (con límites) , Fundamento: Artículo 27 fracción IV LSS
B21: Artículo 117 LFT.- Los trabajadores participarán en las utilidades de las empresas, de conformidad con el porcentaje que determine la Comisión Nacional para la Participación de los Trabajadores en las Utilidades de las Empresas. | D21: Artículo 27 LSS. IV. Las cuotas que en términos de esta Ley le corresponde cubrir al patrón, las aportaciones al Instituto del Fondo Nacional de la Vivienda para los Trabajadores, y las participaciones en las utilidades de la empresa; | G21: https://dof.gob.mx/nota_detalle.php?codigo=5694775&fecha=07/07/2023#gsc.tab=0
B22: 4 | C22: Reembolso de Gastos Médicos Dentales y Hospitalarios | D22: Gravado y Exento | F22: Variable | G22: No , Fundamento: Artículo 27 primer párrafo LSS
B23: 5 | C23: Fondo de Ahorro | D23: Gravado y Exento | F23: Fijo | G23: No (con límites) , Fundamento: Artículo 27 fracción IV LSS
B24: 6 | C24: Caja de ahorro | D24: Gravado y Exento | F24: Fijo
B25: Artículo 27 LSS. II. El ahorro, cuando se integre por un depósito de cantidad semanaria, quincenal o mensual igual del trabajador y de la empresa; si se constituye en forma diversa o puede el trabajador retirarlo más de dos veces al año, integrará salario; tampoco se tomarán en cuenta las cantidades otorgadas por el patrón para fines sociales de carácter sindical.
B26: 9 | C26: Contribuciones a Cargo del Trabajador Pagadas por el Patrón | D26: Gravado | F26: Fijo o variable | G26: Sí , Fundamento: Artículo 27 primer párrafo LSS
B27: 10 | C27: Premios por puntualidad | D27: Gravado | F27: Variable | G27: No (con límites) , Fundamento: Artículo 27 fracción IV LSS
B28: Artículo 27 LSS. VII. Los premios por asistencia y puntualidad, siempre que el importe de cada uno de estos conceptos no rebase el diez por ciento del salario base de cotización.
B29: 11 | C29: Prima de Seguro de vida | D29: Gravado y Exento | F29: Variable | G29: No , Fundamento: Artículo 27 primer párrafo LSS
B30: 12 | C30: Seguro de Gastos Médicos Mayores | D30: Gravado y Exento | F30: Variable | G30: No , Fundamento: Artículo 27 primer párrafo LSS
B31: 13 | C31: Cuotas Sindicales Pagadas por el Patrón | D31: Gravado | F31: Fijo o variable | G31: Sí , Fundamento: Artículo 27 primer párrafo LSS
B32: 14 | C32: Subsidios por incapacidad | D32: Gravado y Exento | F32: Variable | G32: No , Fundamento: Artículo 27 primer párrafo LSS
B33: 15 | C33: Becas para trabajadores y/o hijos | D33: Gravado y Exento | F33: Fijo o variable | G33: No , Fundamento: Artículo 27 primer párrafo LSS
B34: 19 | C34: Horas extra | D34: Gravado y Exento | E34: 5 UMA's por cada semana de servicios Art. 93 fr. I de la LISR | F34: Variable | G34: No (con límites) , Fundamento: Artículo 27 fracción IV LSS
B35: Artículo 66 LFT.- Podrá también prolongarse la jornada de trabajo por circunstancias extraordinarias, sin exceder nunca de tres horas diarias ni de tres veces en una semana. | D35: Artículo 27 LSS. IX. El tiempo extraordinario dentro de los márgenes señalados en la Ley Federal del Trabajo.
B36: 20 | C36: Prima dominical | D36: Gravado y Exento | E36: 1 UMA por cada domingo laborado hasta 52 UMA'S Art. 93 fr. I de la LISR | F36: Fijo o variable | G36: Sí , Fundamento: Artículo 27 primer párrafo LSS
B37: 21 | C37: Prima vacacional | D37: Gravado y Exento | E37: 15 UMA's Art. 93 fr. XIV de la LISR | F37: Fijo | G37: Sí , Fundamento: Artículo 27 primer párrafo LSS
B38: 24 | C38: Seguro de retiro | D38: Gravado y Exento | F38: Variable | G38: No , Fundamento: Artículo 27 primer párrafo LSS
B39: 26 | C39: Reembolso por funeral | D39: Gravado y Exento | F39: Variable | G39: No , Fundamento: Artículo 27 primer párrafo LSS
B40: 27 | C40: Cuotas de seguridad social pagadas por el patrón | D40: Exento | F40: Fijo o variable | G40: Sí , Fundamento: Artículo 27 primer párrafo LSS
B41: Artículo 27 LSS. IV. Las cuotas que en términos de esta Ley le corresponde cubrir al patrón, las aportaciones al Instituto del Fondo Nacional de la Vivienda para los Trabajadores, y las participaciones en las utilidades de la empresa | D41: Artículo 36 LSS. Corresponde al patrón pagar íntegramente la cuota señalada para los trabajadores, en los casos en que éstos perciban como cuota diaria el salario mínimo
B42: 28 | C42: Comisiones | D42: Gravado | F42: Variable | G42: Sí , Fundamento: Artículo 27 primer párrafo LSS
B43: 29 | C43: Vales de despensa | D43: Gravado y Exento | F43: Fijo | G43: No (con límites) , Fundamento: Artículo 27 fracción VI LSS
B44: Artículo 27 LSS. VI. Las despensas en especie o en dinero, siempre y cuando su importe no rebase el cuarenta por ciento del salario mínimo general diario vigente en el Distrito Federal
B45: 30 | C45: Vales de restaurante | D45: Gravado y Exento | F45: Fijo | G45: No (con condicionante) , Fundamento: Artículo 27 fracción VI LSS
B46: Artículo 27 LSS. V. La alimentación y la habitación cuando se entreguen en forma onerosa a los trabajadores; se entiende que son onerosas estas prestaciones cuando el trabajador pague por cada una de ellas, como mínimo, el veinte por ciento del salario mínimo general diario que rija en el Distrito Federal
B47: 31 | C47: Vales de gasolina | D47: Gravado y Exento | F47: Fijo o variable | G47: No , Fundamento: Artículo 27 primer párrafo LSS
B48: 32 | C48: Vales de ropa | D48: Gravado y Exento | F48: Fijo o variable | G48: No , Fundamento: Artículo 27 primer párrafo LSS
B49: 33 | C49: Ayuda para renta | D49: Gravado y Exento | F49: Variable | G49: No , Fundamento: Artículo 27 primer párrafo LSS
B50: 34 | C50: Ayuda para artículos escolares | D50: Gravado y Exento | F50: Variable | G50: No , Fundamento: Artículo 27 primer párrafo LSS
B51: 35 | C51: Ayuda para anteojos | D51: Gravado y Exento | F51: Variable | G51: No , Fundamento: Artículo 27 primer párrafo LSS
B52: 36 | C52: Ayuda para transporte | D52: Gravado y Exento | F52: Variable | G52: No , Fundamento: Artículo 27 primer párrafo LSS
B53: 37 | C53: Ayuda para gastos de funeral | D53: Gravado y Exento | F53: Variable | G53: No , Fundamento: Artículo 27 primer párrafo LSS
B54: 38 | C54: Otros ingresos por salarios | D54: Gravado y Exento | F54: Fijo o variable | G54: Sí o No, depende lo que se pague
B55: 047 | C55: Alimentación diferentes a los establecidos en el Art 94 último párrafo LISR | D55: Gravado y Exento | F55: Fijo | G55: No (con condicionante) , Fundamento: Artículo 27 fracción VI LSS
B56: 48 | C56: Habitación | D56: Gravado y Exento | F56: Fijo | G56: No (con condicionante) , Fundamento: Artículo 27 fracción VI LSS
B57: Artículo 27 LSS. V. La alimentación y la habitación cuando se entreguen en forma onerosa a los trabajadores; se entiende que son onerosas estas prestaciones cuando el trabajador pague por cada una de ellas, como mínimo, el veinte por ciento del salario mínimo general diario que rija en el Distrito Federal
B58: 49 | C58: Premios por asistencia | D58: Gravado | F58: Variable | G58: No (con límites) , Fundamento: Artículo 27 fracción IV LSS
B59: Artículo 27 LSS. VII. Los premios por asistencia y puntualidad, siempre que el importe de cada uno de estos conceptos no rebase el diez por ciento del salario base de cotización.
B60: 50 | C60: Viáticos | D60: Gravado y Exento | G60: No , Fundamento: Artículo 27 primer párrafo LSS
B62: OTROS PAGOS
B63: Tipo | C63: Descripción
B64: 1 | C64: Reintegro de ISR pagado en exceso (siempre que no haya sido enterado al SAT).
B65: 2 | C65: Subsidio para el empleo (efectivamente entregado al trabajador).
B66: 4 | C66: Aplicación de saldo a favor por compensación anual.
B67: 5 | C67: Reintegro de ISR retenido en exceso de ejercicio anterior (siempre que no haya sido enterado al SAT).
B68: 6 | C68: Alimentos en bienes (Servicios de comedor y comida) Art 94 último párrafo LISR.
B69: 7 | C69: ISR ajustado por subsidio.
B70: 8 | C70: Subsidio efectivamente entregado que no correspondía (Aplica sólo cuando haya ajuste al cierre de mes en relación con el Apéndice 7 de la guía de llenado de nómina).
B73: No = Se recomienda consultar con el abogado

Sheet FSBC (hidden)
B2: Solo capture información en las celdas de color verde
B5: Ir al MENÚ | E5: Valor de la UMA | F5: 108.57
E6: Salario diario del trabajador | F6: 380
B7: Artículo 27 LSS. El salario base de cotización se integra con los pagos hechos en efectivo por cuota diaria, gratificaciones, percepciones, alimentación, habitación, primas, comisiones, prestaciones en especie y cualquiera otra cantidad o prestación que se entregue al trabajador por su trabajo. Se excluyen como integrantes del salario base de cotización, dada su naturaleza, los siguientes conceptos:
B8: I. Los instrumentos de trabajo tales como herramientas, ropa y otros similares | F8: https://dof.gob.mx/nota_detalle.php?codigo=5721189&fecha=22/03/2024#gsc.tab=0
B9: II. El ahorro, cuando se integre por un depósito de cantidad semanaria, quincenal o mensual igual del trabajador y de la empresa; si se constituye en forma diversa o puede el trabajador retirarlo más de dos veces al año, integrará salario; tampoco se tomarán en cuenta las cantidades otorgadas por el patrón para fines sociales de carácter sindical.
B10: Artículo 93 LISR. No se pagará el impuesto sobre la renta por la obtención de los siguientes ingresos: XI. Los provenientes de cajas de ahorro de trabajadores y de fondos de ahorro establecidos por las empresas para sus trabajadores cuando reúnan los requisitos de deducibilidad del Título II de esta Ley o, en su caso, del presente Título. Requisitos. Que sean otorgados en forma general a todos los trabajadores El monto del patrón tiene que ser igual a la aportación de los trabajadores No exceder del 13% del salario del trabajador Con un límite del 1.3 veces del valor de la UMA elevada al año Fundamento: Artículo 27 fracción XI LISR
B11: III. Las aportaciones adicionales que el patrón convenga otorgar a favor de sus trabajadores por concepto de cuotas del seguro de retiro, cesantía en edad avanzada y vejez.
B12: IV. Las cuotas que en términos de esta Ley le corresponde cubrir al patrón, las aportaciones al Instituto del Fondo Nacional de la Vivienda para los Trabajadores, y las participaciones en las utilidades de la empresa; | F12: https://dof.gob.mx/nota_detalle.php?codigo=5694775&fecha=07/07/2023#gsc.tab=0
B13: Artículo 36 LSS. Corresponde al patrón pagar íntegramente la cuota señalada para los trabajadores, en los casos en que éstos perciban como cuota diaria el salario mínimo.
B14: Artículo 29 LINFONAVIT.- Son obligaciones de los patrones: II.- Determinar el monto de las aportaciones del cinco por ciento sobre el salario de los trabajadores a su servicio y efectuar el pago en las entidades receptoras que actúen por cuenta y orden del Instituto, para su abono en la subcuenta de vivienda de las cuentas individuales de los trabajadores previstas en los sistemas de ahorro para el retiro, en los términos de la presente Ley y sus reglamentos, así como en lo conducente, conforme a lo previsto en la Ley del Seguro Social y en la Ley Federal del Trabajo. En lo que corresponde a la integración y cálculo de la base y límite superior salarial para el pago de aportaciones, se aplicará lo contenido en la Ley del Seguro Social. Estas aportaciones son gastos de previsión de las empresas y forman parte del patrimonio de los trabajadores. ......................................
B15: V. La alimentación y la habitación cuando se entreguen en forma onerosa a los trabajadores; se entiende que son onerosas estas prestaciones cuando el trabajador pague por cada una de ellas, como mínimo, el veinte por ciento del salario mínimo general diario que rija en el Distrito Federal | F15: =IF(F5<>"","Se debe de cobrar por lo menos $"&ROUND(F5*0.2,2),"") -> Se debe de cobrar por lo menos $21.71 | G15: https://dof.gob.mx/nota_detalle.php?codigo=5733018&fecha=11/07/2024#gsc.tab=0
E16: ¿Cuántos alimentos se le dan al trabajador? | F16: 1
E17: =IF(F16<>"","¿Cuanto paga el trabajador por el alimento?","") -> ¿Cuanto paga el trabajador por el alimento? | F17: 20
E18: =IF(AND(F16<>"",F17<>""),IF(AND(F16=1,F17<ROUND(F5*0.2,2)),"Se integra al salario el 8.33% del salario ordinario",IF(AND(F16=2,F17<ROUND(F5*0.2,2)),"Se integra al salario el 16.66% del salario ordinario",IF(AND(F16=3,F17<ROUND(F5*0.2,2)),"Se integra al salario el 25% del salario ordinario",""))),"") -> Se integra al salario el 8.33% del salario ordinario | F18: =IF(AND(F16<>"",F17<>""),IF(AND(F16=1,F17<ROUND(F5*0.2,2)),ROUND(F6*8.33%,2),IF(AND(F16=2,F17<ROUND(F5*0.2,2)),ROUND(F6*16.66%,2),IF(AND(F16=3,F17<ROUND(F5*0.2,2)),ROUND(F6*25%,2),""))),"") -> 31.65
B19: Artículo 32 LSS. Si además del salario en dinero el trabajador recibe del patrón, sin costo para aquél, habitación o alimentación, se estimará aumentado su salario en un veinticinco por ciento y si recibe ambas prestaciones se aumentará en un cincuenta por ciento. Cuando la alimentación no cubra los tres alimentos, sino uno o dos de éstos, por cada uno de ellos se adicionará el salario en un ocho punto treinta y tres por ciento.
B20: Artículo 344 LFT.- Las disposiciones de este capítulo se aplican a los trabajadores en hoteles, casas de asistencia, restaurantes, fondas, cafés, bares y otros establecimientos análogos. Artículo 348 LFT.- La alimentación que se proporcione a los trabajadores deberá ser sana, abundante y nutritiva.
B21: VI. Las despensas en especie o en dinero, siempre y cuando su importe no rebase el cuarenta por ciento del salario mínimo general diario vigente en el Distrito Federal | F21: =IF(F5<>"","El importe máximo es de $"&ROUND(F5*0.4,2),"") -> El importe máximo es de $43.43
E22: ¿Importe diario que se le entrega al trabajador? | F22: 50
E23: =IF(F22<>"","Parte que integra","") -> Parte que integra | F23: =IFERROR(IF(F22<>"",IF(AND(F22<>"",F22>ROUND(F5*0.4,2)),F22-ROUND(F5*0.4,2),0),""),"") -> 6.57
E24: =IF(F22<>"","Parte que no integra","") -> Parte que no integra | F24: =IFERROR(IF(F22<>"",IF(F22>=ROUND(F5*0.4,2),ROUND(F5*0.4,2),F22),""),"") -> 43.43
B25: VII. Los premios por asistencia y puntualidad, siempre que el importe de cada uno de estos conceptos no rebase el diez por ciento del salario base de cotización | F25: https://dof.gob.mx/nota_detalle.php?codigo=5744811&fecha=10/12/2024#gsc.tab=0
B26: VIII. Las cantidades aportadas para fines sociales, considerándose como tales las entregadas para constituir fondos de algún plan de pensiones establecido por el patrón o derivado de contratación colectiva. Los planes de pensiones serán sólo los que reúnan los requisitos que establezca la Comisión Nacional del Sistema de Ahorro para el Retiro, y | F26: https://dof.gob.mx/nota_detalle.php?codigo=5691515&fecha=08/06/2023#gsc.tab=0
B27: IX. El tiempo extraordinario dentro de los márgenes señalados en la Ley Federal del Trabajo.
B28: Artículo 66 LFT.- Podrá también prolongarse la jornada de trabajo por circunstancias extraordinarias, sin exceder nunca de tres horas diarias ni de tres veces en una semana.
B29: Para que los conceptos mencionados en este precepto se excluyan como integrantes del salario base de cotización, deberán estar debidamente registrados en la contabilidad del patrón. En los conceptos previstos en las fracciones VI, VII y IX cuando el importe de estas prestaciones rebase el porcentaje establecido, solamente se integrarán los excedentes al salario base de cotización.
B31: Determinación del salario base de cotización
B33: Fecha de ingreso
B34: Fecha de cálculo
B35: Salario diario del trabajador
B36: Zona del salario mínimo
B37: Salario mínimo | C37: =IFERROR(VLOOKUP(C36,GENERALES1!B21:C22,2,FALSE),"") -> 
B38: Mes de la UMA
B39: Valor de la UMA | C39: =IFERROR(VLOOKUP(C38,GENERALES1!B25:C26,2,FALSE),"") -> 
B40: ¿Días de aguinaldo que se otorgan?
B41: % de la prima vacacional
B42: ¿Cuántos alimentos se le dan al trabajador? | D42: =IF(C42<>"","¿Cuánto se cobra al trabajador?","") ->  | F42: =IFERROR(IF(C42<>"",IF(E42<($C$39*0.2),"Parte que integra",""),""),"") ->  | G42: =IFERROR(IF(F42<>"",IF(C42=1,ROUND(C35*8.33%,IF(C42=2,ROUND(C35*16.66%,2),ROUND(C35*25%,2))),""),""),"") -> 
B43: ¿Se otorga habitación al trabajador? | D43: =IF(C43="Sí","¿Cuánto se cobra al trabajador?","") ->  | F43: =IFERROR(IF(C43<>"",IF(E43<($C$39*0.2),"Parte que integra",""),""),"") ->  | G43: =IFERROR(IF(F43<>"",ROUND(C35*25%,2),""),"") -> 
B44: ¿% que aporta el patrón al fondo de ahorro? | D44: =IF(C44<>"","¿% que aporta el trabajador?","") ->  | F44: =IF(C44<>E44,"Parte que integra","") ->  | G44: =IFERROR(IF(F44<>"",ROUND((C35*C44)-(C35*E44),2),""),"") -> 
B45: ¿Se otorga despensa al trabajador? | D45: =IF(C45<>"","¿Cuánto se le entrega?","") ->  | F45: =IF(C45<>E45,"Parte que integra","") ->  | G45: =IFERROR(IF(F45<>"",IF(E45>=(C39*0.4),ROUND(E45-(C39*0.4),2),0),""),"") -> 
B46: ¿Labora todos los domingos del año? | D46: =IF(C46="Sí","¿% de la prima dominical?","") -> 
B48: Determinación del factor de integración
B49: Aguinaldo | D49: =IFERROR(ROUND(C50/C51,4),"") -> 
B50: Días de aguinaldo que se otorgan | C50: =IFERROR(IF(C40<>"",C40,""),"") -> 
B51: (/) Días del año | C51: =IF(C50<>"",365,"") -> 
B52: (+) Prima vacacional | D52: =IFERROR(ROUND(C53/C54*C55,4),"") -> 
B53: Días de vacaciones que le corresponden | C53: =IFERROR(IF(AND(C33<>"",C34<>""),VLOOKUP(VALUE(DATEDIF(C33,C34,"y")&"."&DATEDIF(C33,C34,"ym")&DATEDIF(C33,C34,"md")),TABLAV,3),""),"") -> 
B54: (/) Días del año | C54: =IF(C53<>"",365,"") -> 
B55: (x) % de la prima vacacional | C55: =IFERROR(IF(C41<>"",C41,""),"") -> 
B56: (+) Prima dominical (en su caso) | D56: =IFERROR(ROUND(C57/C58*C59,4),"") -> 
B57: Domingos del año | C57: =IFERROR(IF(C46="Sí",52,""),"") -> 
B58: (/) Días del año | C58: =IFERROR(IF(C46="Sí",365,""),"") -> 
B59: (x) % de la prima dominical | C59: =IFERROR(IF(C46="Sí",E46,""),"") -> 
B60: (+) La unidad | D60: =IF(AND(C50<>"",C53<>""),1,"") -> 
B61: (=) Factor de integración | D61: =IFERROR(IF(D49<>"",SUMIF(D49:D60,">0"),""),"") -> 
B63: Determinación del salario base de cotización
B64: Salario diario | D64: =IFERROR(IF(C35<>"",C35,""),"") -> 
B65: (x) Factor de integración | D65: =IFERROR(IF(D61<>"",D61,""),"") -> 
B66: (=) Resultado | D66: =IFERROR(ROUND(D64*D65,2),"") -> 
B67: (+) Alimentación | D67: =IF(G41<>"",G41,"") -> 
B68: (+) Habitación | D68: =IF(G42<>"",G42,"") -> 
B69: (+) Fondo de ahorro | D69: =IF(G43<>"",G43,"") -> 
B70: (+) Despensa | D70: =IF(G44<>"",G44,"") -> 
B71: (=) Salario base de cotización en partes fijas | D71: =SUMIF(D65:D70,">0") -> 0
B74: Determinación de las partes variables
B75: Días devengados del bimestre
C77: Importe 1er. Mes | D77: Importe 2° mes | E77: Total | F77: Importe x día del bimestre | G77: Límite máximo | H77: Parte que no integra | I77: Parte que integra
B78: Premio de puntualidad | E78: =IF(OR(C78<>"",D78<>""),SUM(C78:D78),"") ->  | F78: =IFERROR(ROUND(E78/C75,2),"") ->  | G78: =IFERROR(IF(E78<>"",ROUND(D72*0.1,2),""),"") ->  | H78: =IF(F78<>"",IF(F78>=G78,G78,F78),"") ->  | I78: =IF(F78<>"",IF(F78>G78,F78-G78,0),"") -> 
B79: Premio de asistencia | E79: =IF(OR(C79<>"",D79<>""),SUM(C79:D79),"") ->  | F79: =IFERROR(ROUND(E79/C76,2),"") ->  | G79: =IFERROR(IF(E79<>"",ROUND(D72*0.1,2),""),"") ->  | H79: =IF(F79<>"",IF(F79>=G79,G79,F79),"") ->  | I79: =IF(F79<>"",IF(F79>G79,F79-G79,0),"") -> 
B80: Bonos | E80: =IF(OR(C80<>"",D80<>""),SUM(C80:D80),"") ->  | F80: =IFERROR(ROUND(E80/C77,2),"") -> 
B81: Tiempo extra triple | E81: =IF(OR(C81<>"",D81<>""),SUM(C81:D81),"") ->  | F81: =IFERROR(ROUND(E81/C78,2),"") -> 
B82: Otros | E82: =IF(OR(C82<>"",D82<>""),SUM(C82:D82),"") ->  | F82: =IFERROR(ROUND(E82/C79,2),"") -> 
E83: Total partes variables | F83: =SUMIF(F78:F82,">0") -> 0
B85: Artículo 28 LSS. Los asegurados se inscribirán con el salario base de cotización que perciban en el momento de su afiliación, estableciéndose como límite superior el equivalente a veinticinco veces el salario mínimo general que rija en el Distrito Federal y como límite inferior el salario mínimo general del área geográfica respectiva.
B87: Importe en partes fijas | C87: =IFERROR(IF(D71<>"",D71,""),"") -> 0
B88: (+) Importe en partes variables | C88: =IFERROR(IF(AND(F83<>"",F83>0),F83,""),"") -> 
B89: (=) Total | C89: =IF(C87<>"",SUMIF(C87:C88,">0"),"") -> 0
B91: Salario base de cotización | C91: =IFERROR(IF(C89<ROUND(C37*D61,2),ROUND(C37*D61,2),IF(C89>ROUND(C39*25,2),ROUND(C39*25,2),C89)),"") -> 

Sheet RIMSS (hidden)
B3: Capture información en las celdas de color verde | E3: Ir al MENÚ
B6: Seguro y concepto | C6: Prestaciones | D6: Cuota Patrón | E6: Tasa Patrón | F6: Cuota Trabajador | G6: Total | H6: Base salarial | I6: Fundamento legal
B7: Riesgos de Trabajo | C7: En especie y dinero | D7: Conforme con su siniestralidad laboral | F7: 0 | G7: Prima correspondiente | H7: Salario base de cotización (SBC) | I7: Artículo 40, 70, 73 LSS y 24 RMACERF
B8: Enfermedades y Maternidad | C8: En especie | D8: Cuota fija por cada colaborador hasta por tres Salarios Mínimos General Vigente (SMGV) en el DF | E8: 0.204 | F8: 0 | G8: 0.204 | H8: UMA | I8: Artículo 105, 106 Y 107 LSS
B9: Enfermedades y Maternidad | C9: En especie | D9: Cuota adicional por la diferencia del SBC y de tres veces el valor de la UMA | E9: 0.011 | F9: 0.004 | G9: 0.015 | H9: Diferencia entre el SBC y tres UMAS
B10: Enfermedades y Maternidad | C10: En dinero | D10: 0.007 | F10: 0.0025 | G10: 0.0095 | H10: SBC
B11: Enfermedades y Maternidad | C11: Gastos médicos para pensionados y beneficiarios | D11: 0.0105 | F11: 0.00375 | G11: 0.0143 | H11: SBC
B12: Invalidez y Vida | C12: En especie y dinero | D12: 0.0175 | F12: 0.0063 | G12: 0.0238 | H12: SBC | I12: Artículo 112, 146 y 147 LSS
B13: Retiro, Cesantía en Edad Avanzada y Vejez (CEAV) | C13: Retiro | D13: 0.02 | F13: 0 | G13: 0.02 | H13: SBC | I13: Artículo 152, 167 y 168 LSS
C14: CEAV | D14: 3.15% * | F14: 0.01125 | G14: 0.0428 | H14: SBC
B15: Guarderías y Prestaciones Sociales | C15: En especie | D15: 0.01 | F15: 0 | G15: 0.01 | H15: SBC | I15: Artículo 201, 211 y 212 LSS
B17: * Cambia a partir del ejercicio de 2023
B19: Artículo 38 LSS. El patrón al efectuar el pago de salarios a sus trabajadores, deberá retener las cuotas que a éstos les corresponde cubrir. Cuando no lo haga en tiempo oportuno, sólo podrá descontar al trabajador cuatro cotizaciones semanales acumuladas, quedando las restantes a su cargo. El patrón tendrá el carácter de retenedor de las cuotas que descuente a sus trabajadores y deberá determinar y enterar al Instituto las cuotas obrero patronales, en los términos establecidos por esta Ley y sus reglamentos.
B22: Fecha inicial de cálculo
B23: Fecha final de cálculo
B24: Salario diario del trabajador
B25: Zona del salario mínimo
B26: Salario mínimo | C26: =IFERROR(VLOOKUP(C25,GENERALES1!B21:C22,2,FALSE),"") -> 
B27: Mes de la UMA
B28: Valor de la UMA | C28: =IFERROR(VLOOKUP(C27,GENERALES1!B25:C26,2,FALSE),"") -> 
B29: ¿Días de aguinaldo que se otorgan?
B30: % de la prima vacacional
B31: Días del periodo a calcular
B33: Seguro y concepto | D33: Salario Base de Cotización | E33: (-) 3 umas | F33: (=) Excedente 3 umas | G33: (x) Cuota obrera | H33: (=) Cuota diaria | I33: (x) días del periodo | J33: (=) Cuota obrera
B34: Enfermedades y Maternidad | D34: =IFERROR(ROUND($C$24*(1+($C$29/365)+(VLOOKUP(VALUE(DATEDIF($C$22,$C$23,"Y")&"."&DATEDIF($C$22,$C$23,"YM")&DATEDIF($C$22,$C$23,"MD")),TABLAV,3)/365*$C$30)),2),"") -> 0 | E34: =IFERROR(C28*3,0) -> 0 | F34: =IFERROR(IF(D34>=E34,D34-E34,0),0) -> 0 | G34: =F9 -> 0.004 | H34: =IFERROR(ROUND(F34*G34,2),0) -> 0 | I34: =IFERROR($C$31,"") -> 0 | J34: =IFERROR(ROUND(H34*I34,2),0) -> 0
B35: Enfermedades y Maternidad | D35: =IFERROR(ROUND($C$24*(1+($C$29/365)+(VLOOKUP(VALUE(DATEDIF($C$22,$C$23,"Y")&"."&DATEDIF($C$22,$C$23,"YM")&DATEDIF($C$22,$C$23,"MD")),TABLAV,3)/365*$C$30)),2),"") -> 0 | G35: =F10 -> 0.0025 | H35: =IFERROR(ROUND(D35*G35,2),0) -> 0 | I35: =IFERROR($C$31,"") -> 0 | J35: =IFERROR(ROUND(H35*I35,2),0) -> 0
B36: Enfermedades y Maternidad | D36: =IFERROR(ROUND($C$24*(1+($C$29/365)+(VLOOKUP(VALUE(DATEDIF($C$22,$C$23,"Y")&"."&DATEDIF($C$22,$C$23,"YM")&DATEDIF($C$22,$C$23,"MD")),TABLAV,3)/365*$C$30)),2),"") -> 0 | G36: =F11 -> 0.00375 | H36: =IFERROR(ROUND(D36*G36,2),0) -> 0 | I36: =IFERROR($C$31,"") -> 0 | J36: =IFERROR(ROUND(H36*I36,2),0) -> 0
B37: Invalidez y Vida | D37: =IFERROR(ROUND($C$24*(1+($C$29/365)+(VLOOKUP(VALUE(DATEDIF($C$22,$C$23,"Y")&"."&DATEDIF($C$22,$C$23,"YM")&DATEDIF($C$22,$C$23,"MD")),TABLAV,3)/365*$C$30)),2),"") -> 0 | G37: =F12 -> 0.0063 | H37: =IFERROR(ROUND(D37*G37,2),0) -> 0 | I37: =IFERROR($C$31,"") -> 0 | J37: =IFERROR(ROUND(H37*I37,2),0) -> 0
B38: Cesantía en Edad Avanzada y Vejez (CEAV) | D38: =IFERROR(ROUND($C$24*(1+($C$29/365)+(VLOOKUP(VALUE(DATEDIF($C$22,$C$23,"Y")&"."&DATEDIF($C$22,$C$23,"YM")&DATEDIF($C$22,$C$23,"MD")),TABLAV,3)/365*$C$30)),2),"") -> 0 | G38: =F14 -> 0.01125 | H38: =IFERROR(ROUND(D38*G38,2),0) -> 0 | I38: =IFERROR($C$31,"") -> 0 | J38: =IFERROR(ROUND(H38*I38,2),0) -> 0
I39: Total | J39: =SUM(J34:J38) -> 0
B41: Artículo 36 LSS. Corresponde al patrón pagar íntegramente la cuota señalada para los trabajadores, en los casos en que éstos perciban como cuota diaria el salario mínimo.
B43: Importe a retener | C43: =IFERROR(IF(C24>C26,J39,0),"") -> 0

Sheet RISR_IMSS (hidden)
B2: Capture información en las celdas de color verde
B4: Año de cálculo
B5: Mes de cálculo | G5: Ir al MENÚ
B6: Periodicidad de pago
B7: Salario diario
B8: Salario base de cotización
B9: Zona del salario mínimo
B10: Salario mínimo | C10: =IFERROR(VLOOKUP(C9,GENERALES1!$B$21:$C$22,2,FALSE),"") -> 
B11: Mes de la UMA
B12: Valor de la UMA | C12: =IFERROR(VLOOKUP(C11,GENERALES1!$B$25:$C$26,2,FALSE),"") -> 
B15: V. Tarifa aplicable durante 2025 para el cálculo de los pagos provisionales mensuales a que se refieren los artículos 96 de la Ley del ISR y 175 de su Reglamento, así como la regla 3.12.2.
B16: Límite inferior | C16: Límite superior | D16: Cuota fija | E16: Por ciento para aplicarse sobre el excedente del límite inferior
B17: $ | C17: $ | D17: $ | E17: %
A18: ① | B18: 0.01 | C18: =IFERROR(IF($C$6<>"",IF($C$6<30,ROUND(TARIFA!C9/30.4*$C$6,2),TARIFA!C9),""),"") ->  | D18: =IFERROR(IF($C$6<>"",IF($C$6<30,ROUND(TARIFA!D9/30.4*$C$6,2),TARIFA!D9),""),"") ->  | E18: 1.92
A19: ① | B19: =IFERROR(C18+0.01,"") ->  | C19: =IFERROR(IF($C$6<>"",IF($C$6<30,ROUND(TARIFA!C10/30.4*$C$6,2),TARIFA!C10),""),"") ->  | D19: =IFERROR(IF($C$6<>"",IF($C$6<30,ROUND(TARIFA!D10/30.4*$C$6,2),TARIFA!D10),""),"") ->  | E19: 6.4
A20: ① | B20: =IFERROR(C19+0.01,"") ->  | C20: =IFERROR(IF($C$6<>"",IF($C$6<30,ROUND(TARIFA!C11/30.4*$C$6,2),TARIFA!C11),""),"") ->  | D20: =IFERROR(IF($C$6<>"",IF($C$6<30,ROUND(TARIFA!D11/30.4*$C$6,2),TARIFA!D11),""),"") ->  | E20: 10.88
A21: ① | C21: =IFERROR(IF($C$6<>"",IF($C$6<30,ROUND(TARIFA!C12/30.4*$C$6,2),TARIFA!C12),""),"") ->  | D21: =IFERROR(IF($C$6<>"",IF($C$6<30,ROUND(TARIFA!D12/30.4*$C$6,2),TARIFA!D12),""),"") ->  | E21: 16
A22: ① | C22: =IFERROR(IF($C$6<>"",IF($C$6<30,ROUND(TARIFA!C13/30.4*$C$6,2),TARIFA!C13),""),"") ->  | D22: =IFERROR(IF($C$6<>"",IF($C$6<30,ROUND(TARIFA!D13/30.4*$C$6,2),TARIFA!D13),""),"") ->  | E22: 17.92
A23: ① | C23: =IFERROR(IF($C$6<>"",IF($C$6<30,ROUND(TARIFA!C14/30.4*$C$6,2),TARIFA!C14),""),"") ->  | D23: =IFERROR(IF($C$6<>"",IF($C$6<30,ROUND(TARIFA!D14/30.4*$C$6,2),TARIFA!D14),""),"") ->  | E23: 21.36
A24: ① | C24: =IFERROR(IF($C$6<>"",IF($C$6<30,ROUND(TARIFA!C15/30.4*$C$6,2),TARIFA!C15),""),"") ->  | D24: =IFERROR(IF($C$6<>"",IF($C$6<30,ROUND(TARIFA!D15/30.4*$C$6,2),TARIFA!D15),""),"") ->  | E24: 23.52
A25: ① | C25: =IFERROR(IF($C$6<>"",IF($C$6<30,ROUND(TARIFA!C16/30.4*$C$6,2),TARIFA!C16),""),"") ->  | D25: =IFERROR(IF($C$6<>"",IF($C$6<30,ROUND(TARIFA!D16/30.4*$C$6,2),TARIFA!D16),""),"") ->  | E25: 30
A26: ① | C26: =IFERROR(IF($C$6<>"",IF($C$6<30,ROUND(TARIFA!C17/30.4*$C$6,2),TARIFA!C17),""),"") ->  | D26: =IFERROR(IF($C$6<>"",IF($C$6<30,ROUND(TARIFA!D17/30.4*$C$6,2),TARIFA!D17),""),"") ->  | E26: 32
A27: ① | C27: =IFERROR(IF($C$6<>"",IF($C$6<30,ROUND(TARIFA!C18/30.4*$C$6,2),TARIFA!C18),""),"") ->  | D27: =IFERROR(IF($C$6<>"",IF($C$6<30,ROUND(TARIFA!D18/30.4*$C$6,2),TARIFA!D18),""),"") ->  | E27: 34
A28: ① | C28: =TARIFA!C19 -> En adelante | D28: =IFERROR(IF($C$6<>"",IF($C$6<30,ROUND(TARIFA!D19/30.4*$C$6,2),TARIFA!D19),""),"") ->  | E28: 35
B30: Salario del periodo | D30: =IFERROR(IF(C7<>"",ROUND(C7*C6,2),0.01),"") -> 0.01
B31: (+) Otros ingresos
B32: (-) Deducciones
B33: (=) Salario base para ISR | D33: =IFERROR(ROUND(D30+D31-D32,2),"") -> 0.01
B34: Salario acumulado para subsidio al empleo (en su caso)
C36: Salario base para ISR | D36: =IFERROR(IF(D33>0,D33,""),"") -> 0.01 | G36: =IF($D$36<>"","Determinación del subsidio al empleo","") -> Determinación del subsidio al empleo
C37: (-) Límite inferior | D37: =IFERROR(VLOOKUP(D36,$B$18:$E$28,1),"") -> 0.01 | E37: ① | G37: =IF($D$36<>"","Valor de la UMA mensual","") -> Valor de la UMA mensual | H37: =IF(G37<>"",IF(C5="Enero",GENERALES1!C28,GENERALES1!C29),"") -> 3439.46
C38: (=) Excedente límite inferior | D38: =IFERROR(D36-D37,"") -> 0 | G38: =IF($D$36<>"","% de subsidio","") -> % de subsidio | H38: =IF(C5="Enero",TARIFA!E27,TARIFA!D24) -> 0.138
C39: (x) % excedente límite inferior | D39: =IFERROR(VLOOKUP(D36,$B$18:$E$28,4),"") -> 1.92 | E39: ① | G39: =IF($D$36<>"","Valor mensual del subsidio","") -> Valor mensual del subsidio | H39: =IF(G39<>"",ROUND(H37*H38,2),"") -> 474.65
C40: (=) Impuesto marginal | D40: =IFERROR(ROUND(D38*D39%,2),"") -> 0 | G40: =IF(AND($D$36<>"",$C$6<30),"(/) 30.4","") -> (/) 30.4 | H40: =IF(G40<>"",30.4,"") -> 30.4
C41: (+) Cuota fija | D41: =IFERROR(VLOOKUP(D36,$B$18:$E$28,3),"") ->  | E41: ① | G41: =IF(AND($D$36<>"",$C$6<30),"(x) Periodo de pago","") -> (x) Periodo de pago | H41: =IF(G41<>"",C6,"") -> 0
C42: (=) ISR causado | D42: =IFERROR(D40+D41,"") ->  | G42: =IF(AND($D$36<>"",$C$6<30),"(=) Subsidio al empleo del periodo","") -> (=) Subsidio al empleo del periodo | H42: =IF(G42<>"",ROUND(H39/H40*H41,2),"") -> 0
C43: (-) Subsidio al empleo causado | D43: =IFERROR(IF((D33+D34)<=GENERALES1!$C$30,IF($C$6<30,IF(D42>=H42,H42,D42),IF(D42>=H39,H39,D42)),0),"") -> 0
C44: (=) ISR a retener | D44: =IFERROR(D42-D43,"") -> 
B47: Seguro y concepto | C47: Prestaciones | D47: Salario Base de Cotización | E47: (-) 3 umas | F47: (=) Excedente 3 umas | G47: (x) Cuota obrera | H47: (=) Cuota diaria | I47: (x) días del periodo | J47: (=) Cuota obrera
B48: Enfermedades y Maternidad | C48: En especie | D48: =IF(C8<>"",$C$8,"") ->  | E48: =IFERROR($C$12*3,0) -> 0 | F48: =IFERROR(IF(D48>=E48,D48-E48,0),0) -> 0 | G48: =RIMSS!G34 -> 0.004 | H48: =IFERROR(ROUND(F48*G48,2),0) -> 0 | I48: =$C$6 -> 0 | J48: =IFERROR(ROUND(H48*I48,2),0) -> 0
B49: Enfermedades y Maternidad | C49: En dinero | D49: =IF(C9<>"",$C$8,"") ->  | G49: =RIMSS!G35 -> 0.0025 | H49: =IFERROR(ROUND(D49*G49,2),0) -> 0 | I49: =$C$6 -> 0 | J49: =IFERROR(ROUND(H49*I49,2),0) -> 0
B50: Enfermedades y Maternidad | C50: Gastos médicos para pensionados y beneficiarios | D50: =IF(C10<>"",$C$8,"") ->  | G50: =RIMSS!G36 -> 0.00375 | H50: =IFERROR(ROUND(D50*G50,2),0) -> 0 | I50: =$C$6 -> 0 | J50: =IFERROR(ROUND(H50*I50,2),0) -> 0
B51: Invalidez y Vida | C51: En especie y dinero | D51: =IF(C11<>"",$C$8,"") ->  | G51: =RIMSS!G37 -> 0.0063 | H51: =IFERROR(ROUND(D51*G51,2),0) -> 0 | I51: =$C$6 -> 0 | J51: =IFERROR(ROUND(H51*I51,2),0) -> 0
B52: Cesantía en Edad Avanzada y Vejez (CEAV) | D52: =IF(C12<>"",$C$8,"") ->  | G52: =RIMSS!G38 -> 0.01125 | H52: =IFERROR(ROUND(D52*G52,2),0) -> 0 | I52: =$C$6 -> 0 | J52: =IFERROR(ROUND(H52*I52,2),0) -> 0
I53: Total | J53: =SUM(J48:J52) -> 0
B55: Ingreso base para ISR | C55: =IFERROR(IF(D36<>"",D36,""),"") -> 0.01
B56: (-) Retención de ISR | C56: =IF(C7>C10,D44,"") -> 
B57: (-) Retención de IMSS | C57: =IF(C7>C10,J53,"") -> 
B58: (=) Neto | C58: =IFERROR(C55-SUMIF(C56:C57,">0"),"") -> 0.01
B62: Las personas que hagan pagos por los conceptos a que se refiere el artículo 95 de esta Ley, efectuarán la retención aplicando al ingreso total por este concepto, una tasa que se calculará dividiendo el impuesto correspondiente al último sueldo mensual ordinario, entre dicho sueldo; el cociente obtenido se multiplicará por cien y el producto se expresará en por ciento. Cuando los pagos por estos conceptos sean inferiores al último sueldo mensual ordinario, la retención se calculará aplicándoles la tarifa establecida en este artículo. Fundamento: Artículo 96 sexto párrafo LISR
B64: Retención de ISR por pagos por separación
B65: Fecha de ingreso
B66: Fecha de cálculo
B67: Salario diario
B68: Salario diario integrado
B69: Zona del salario mínimo
B70: Salario mínimo | C70: =IFERROR(VLOOKUP(C69,GENERALES1!$B$21:$C$22,2,FALSE),"") -> 
B71: Valor de la UMA | C71: =IFERROR(IF(C66<>"",IF(MONTH(C66)=1,GENERALES1!C25,GENERALES1!C26),""),"") -> 
B72: Antigüedad para LFT | C72: =IFERROR(DATEDIF(C65,C66,"Y"),"") -> 0
B73: Antigüedad para ISR | C73: =IFERROR(IF(AND(C65<>"",C66<>""),IF(VALUE(DATEDIF(C65,C66,"YM")&DATEDIF(C65,C66,"MD"))>6,DATEDIF(C65,C66,"Y")+1,DATEDIF(C65,C66,"Y")),""),"") -> 
B74: Último sueldo mensual ordinario | C74: =IFERROR(IF(C67<>"",C67,""),"") -> 
C76: Calcular los siguiente conceptos
C77: Prima de antigüedad | E77: =IFERROR(IF(D77="Sí",ROUND(12*C72*IF(C67>=(C70*2),ROUND(C70,2),C67),2),""),"") -> 
C78: 3 meses | E78: =IFERROR(IF(D78="Sí",ROUND(90*C68,2),""),"") -> 
C79: 20 días por año | E79: =IFERROR(IF(D79="Sí",ROUND(20*C72*C68,2),""),"") -> 
D80: Total pagos | E80: =SUMIF(E77:E79,">0") -> 0
D81: (-) Ingreso exento | E81: =IFERROR(IF(E80>=ROUND(C71*90*C73,2),ROUND(C71*90*C73,2),E80),"") -> 
D82: (=) Ingreso acumulable | E82: =IFERROR(E80-E81,"") -> 
D83: (-) Último sueldo mensual ordinario | E83: =IFERROR(IF(OR(D77<>"",D78<>"",D79<>""),ROUND(C67*30,2),""),"") -> 
D84: (=) Ingreso no acumulable | E84: =IFERROR(IF(E82>=E83,E82-E83,0),"") -> 
B86: Determinación de la retención de ISR
B87: =IF(E82>=E83,"Último sueldo mensual ordinario","Ingreso acumulable") -> Último sueldo mensual ordinario | C87: =IF(E82>=E83,E83,E82) -> 
B88: =IF(E82>E83,"Determinación de la tasa de ISR","ISR a retener") -> ISR a retener | C88: =IFERROR(IF(E82<E83,ROUND(((E82-VLOOKUP(E82,TARIFA!$B$9:$E$19,1))*VLOOKUP(E82,TARIFA!$B$9:$E$19,4)%)+VLOOKUP(E82,TARIFA!$B$9:$E$19,3),2),""),0) -> 
B89: =IF(E82>E83,"ISR último sueldo mensual ordinario","") ->  | C89: =IFERROR(IF(E82>E83,ROUND(((E83-VLOOKUP(E83,TARIFA!$B$9:$E$19,1))*VLOOKUP(E83,TARIFA!$B$9:$E$19,4)%)+VLOOKUP(E83,TARIFA!$B$9:$E$19,3),2),""),"") -> 
B90: =IF(E82>E83,"(/) Último sueldo mensual ordinario","") ->  | C90: =IF(B90<>"",E83,"") -> 
B91: =IF(E82>E83,"(=) Tasa de ISR","") ->  | C91: =IFERROR(IF(B91<>"",ROUND(C89/C90,4),""),"") -> 
B93: =IF(E82>E83,"Ingreso acumulable","") ->  | C93: =IF(B93<>"",E82,"") -> 
B94: =IF(E82>E83,"(x) Tasa de ISR","") ->  | C94: =IF(B94<>"",C91,"") -> 
B95: =IF(E82>E83,"(=) ISR a retener","") ->  | C95: =IFERROR(IF(B95<>"",ROUND(C93*C94,2),""),"") -> 

Sheet CUOTASIMSS (hidden)
B5: Seguro y concepto | C5: Prestaciones | D5: Cuota Patrón | E5: Tasa Patrón | F5: Cuota Trabajador | G5: Total | H5: Base salarial | I5: Fundamento legal
B6: Riesgos de Trabajo | C6: En especie y dinero | D6: Conforme con su siniestralidad laboral | F6: 0 | G6: Prima correspondiente | H6: Salario base de cotización (SBC) | I6: Artículo 40, 70, 73 LSS y 24 RMACERF
B7: Enfermedades y Maternidad | C7: En especie | D7: Cuota fija por cada colaborador hasta por tres Salarios Mínimos General Vigente (SMGV) en el DF | E7: 0.204 | F7: 0 | G7: 0.204 | H7: UMA | I7: Artículo 105, 106 Y 107 LSS
B8: Enfermedades y Maternidad | C8: En especie | D8: Cuota adicional por la diferencia del SBC y de tres veces el valor de la UMA | E8: 0.011 | F8: 0.004 | G8: 0.015 | H8: Diferencia entre el SBC y tres UMAS
B9: Enfermedades y Maternidad | C9: En dinero | D9: 0.007 | F9: 0.0025 | G9: 0.0095 | H9: SBC
B10: Enfermedades y Maternidad | C10: Gastos médicos para pensionados y beneficiarios | D10: 0.0105 | F10: 0.00375 | G10: 0.0143 | H10: SBC
B11: Invalidez y Vida | C11: En especie y dinero | D11: 0.0175 | F11: 0.0063 | G11: 0.0238 | H11: SBC | I11: Artículo 112, 146 y 147 LSS
A12: ① | B12: Retiro, Cesantía en Edad Avanzada y Vejez (CEAV) | C12: Retiro | D12: 0.02 | F12: 0 | G12: 0.02 | H12: SBC | I12: Artículo 152, 167 y 168 LSS
C13: CEAV | D13: 3.15% * | F13: 0.01125 | G13: 0.0428 | H13: SBC
B14: Guarderías y Prestaciones Sociales | C14: En especie | D14: 0.01 | F14: 0 | G14: 0.01 | H14: SBC | I14: Artículo 201, 211 y 212 LSS
B16: * Cambia a partir del ejercicio de 2023 de acuerdo a la tabla siguiente

Sheet CYVSS (hidden)
A2: ①
B3: Fecha de cálculo
B4: Zona del salario mínimo
B5: Salario base de cotización
B6: Salario mínimo | C6: =IFERROR(VLOOKUP(C4,GENERALES1!$B$21:$C$22,2,FALSE),"") -> 
B7: Valor de la UMA | C7: =IFERROR(IF(C3<>"",IF(TEXT(C3,"mmmm")="Enero",UMAE,UMAF),""),"") -> 
B9: % que le corresponde | C9: 0
B13: Valor mímino | C13: Valor máximo | D13: % a aplicar
B14: =IF(AND(C6<>"",C7<>""),C6,"") ->  | C14: =IF(AND(C6<>"",C7<>""),C6,"") ->  | D14: 0.0315
B15: =IF(AND(C6<>"",C7<>""),ROUND(C6*1.01,2),"") ->  | C15: =IF(AND(C6<>"",C7<>""),ROUND(C7*1.5,2),"") ->  | D15: 0.03544
B16: =IF(AND($C$6<>"",$C$7<>""),ROUND($C$7*1.51,2),"") ->  | C16: =IF(AND($C$6<>"",$C$7<>""),ROUND($C$7*2,2),"") ->  | D16: 0.04426
B17: =IF(AND($C$6<>"",$C$7<>""),ROUND($C$7*2.01,2),"") ->  | C17: =IF(AND($C$6<>"",$C$7<>""),ROUND($C$7*2.5,2),"") ->  | D17: 0.04954
B18: =IF(AND($C$6<>"",$C$7<>""),ROUND($C$7*2.51,2),"") ->  | C18: =IF(AND($C$6<>"",$C$7<>""),ROUND($C$7*3,2),"") ->  | D18: 0.05307
B19: =IF(AND($C$6<>"",$C$7<>""),ROUND($C$7*3.01,2),"") ->  | C19: =IF(AND($C$6<>"",$C$7<>""),ROUND($C$7*3.5,2),"") ->  | D19: 0.05559
B20: =IF(AND($C$6<>"",$C$7<>""),ROUND($C$7*3.51,2),"") ->  | C20: =IF(AND($C$6<>"",$C$7<>""),ROUND($C$7*4,2),"") ->  | D20: 0.05747
B21: =IF(AND($C$6<>"",$C$7<>""),ROUND($C$7*4.01,2),"") ->  | C21: 99999999 | D21: 0.06422
B81: https://www.internet2.scjn.gob.mx/red2/comunicados/noticia.asp?id=7154

Sheet IMSS (hidden)
B2: Determinación de las cuotas obrero patronales IMSS
B4: Año de cálculo
B5: Salario base de cotización
B6: Mes a cotizar
B7: Bimestre | D7: AL
B8: Faltas del periodo
B9: Incapacidad del periodo
B10: Prima de riesgo de trabajo
B11: Valor de la UMA
B12: Zona del salario mínimo
B13: Salario mínimo | C13: =IFERROR(VLOOKUP(C12,GENERALES1!$B$21:$C$22,2,FALSE),"") -> 
B15: Cuota patronal
B16: Riesgo de trabajo
B17: Salario base de cotización
B18: (x) Prima de riesgo de trabajo
B19: (=) Prima correspondiente
B20: (x) Días a cotizar - faltas - incapacidad
B21: (=) Cuota x riesgo de trabajo
B24: Cuota patronal
B25: Enfermedad y maternidad cuota fija
B26: Valor de la UMA
B27: (X) Cuota patrón
B28: (=) Cuota diaria
B29: (x) Días a cotizar - incapacidad
B30: (=) Cuota patronal
B32: Cuota patronal | E32: Cuota obrera
B33: Enfermedad y maternidad excedente 3 veces el valor de la UMA | E33: Enfermedad y maternidad excedente 3 veces el salario valor de la UMA
B34: Salario Base de Cotización | E34: Salario Base de Cotización
B35: (-) 3 umas | E35: (-) 3 umas
B36: (=) Excedente 3 umas | E36: (=) Excedente 3 umas
B37: (x) Cuota patronal | E37: (x) Cuota obrera
B38: (=) Cuota diaria | E38: (=) Cuota diaria
B39: (x) Días a cotizar - incapacidad | E39: (x) Días a cotizar - incapacidad
B40: (=) Cuota patronal excedente | E40: (=) Cuota obrera excedente
B42: Cuota patronal | E42: Cuota obrera
B43: Enfermedad y maternidad prestaciones en dinero | E43: Enfermedad y maternidad prestaciones en dinero
B44: Salario base de cotización | E44: Salario base de cotización
B45: (x) Cuota patronal | E45: (x) Cuota patronal
B46: (=) Prima correspondiente | E46: (=) Prima correspondiente
B47: (x) Días a cotizar - incapacidad | E47: (x) Días a cotizar - incapacidad
B48: (=) Cuota patronal | E48: (=) Cuota obrera
B50: Cuota patronal | E50: Cuota obrera
B51: Enfermedad y maternidad pensionados | E51: Enfermedad y maternidad pensionados
B52: Salario base de cotización | E52: Salario base de cotización
B53: (x) Cuota patronal | E53: (x) Cuota patronal
B54: (=) Prima correspondiente | E54: (=) Prima correspondiente
B55: (x) Días a cotizar - incapacidad | E55: (x) Días a cotizar - incapacidad
B56: (=) Cuota patronal | E56: (=) Cuota obrera
B58: Cuota patronal | E58: Cuota obrera
B59: Invalidez y vida | E59: Invalidez y vida
B60: Salario base de cotización | E60: Salario base de cotización
B61: (x) Cuota patronal | E61: (x) Cuota patronal
B62: (=) Prima correspondiente | E62: (=) Prima correspondiente
B63: (x) Días a cotizar - incapacidad - faltas | E63: (x) Días a cotizar - incapacidad - faltas
B64: (=) Cuota patronal | E64: (=) Cuota obrera
B67: Cuota patronal
B68: Guarderia
B69: Salario base de cotización
B70: (x) Cuota patronal
B71: (=) Prima correspondiente
B72: (x) Días a cotizar - incapacidad - faltas
B73: (=) Cuota patronal
B77: Resumen mensual
C78: Patronal | D78: Obrera | E78: Suma
B79: Importe total
B80: Cuota fija
B81: Excedente
B82: Prestaciones en dinero
B83: Gastos medicos pensionados art. 25
B84: Riesgo de trabajo
B85: Invalidez y vida
B86: Guarderias y prestaciones sociales
B89: Periodo bimestral
B91: Cuota patronal
B92: Retiro
B93: Salario base de cotización
B94: (x) Cuota patronal
B95: (=) Prima correspondiente
B96: (x) Días a cotizar - faltas
B97: (=) Cuota patronal
B100: Cuota patronal | E100: Cuota obrera
B101: Cesantia en edad avanzada y vejez | E101: Cesantia en edad avanzada y vejez
B102: Salario base de cotización | E102: Salario base de cotización
B103: (x) Cuota patronal | E103: (x) Cuota patronal
B104: (=) Prima correspondiente | E104: (=) Prima correspondiente
B105: (x) Días a cotizar - incapacidad - faltas | E105: (x) Días a cotizar - incapacidad - faltas
B106: (=) Cuota patronal | E106: (=) Cuota obrera
B108: Valor mímino | C108: Valor máximo | D108: % a aplicar
B109: =IF(AND($C$11<>"",$C$13<>""),C13,"") ->  | C109: =IF(AND($C$11<>"",$C$13<>""),C13,"") ->  | D109: 0.0315
B110: =IF(AND(C11<>"",C13<>""),ROUND(C13*1.01,2),"") ->  | C110: =IF(AND($C$11<>"",$C$13<>""),ROUND($C$11*1.5,2),"") ->  | D110: 0.03544
B111: =IF(AND($C$11<>"",$C$13<>""),ROUND($C$11*1.51,2),"") ->  | C111: =IF(AND($C$11<>"",$C$13<>""),ROUND($C$11*2,2),"") ->  | D111: 0.04426
B112: =IF(AND($C$11<>"",$C$13<>""),ROUND($C$11*2.01,2),"") ->  | C112: =IF(AND($C$11<>"",$C$13<>""),ROUND($C$11*2.5,2),"") ->  | D112: 0.04954
B113: =IF(AND($C$11<>"",$C$13<>""),ROUND($C$11*2.51,2),"") ->  | C113: =IF(AND($C$11<>"",$C$13<>""),ROUND($C$11*3,2),"") ->  | D113: 0.05307
B114: =IF(AND($C$11<>"",$C$13<>""),ROUND($C$11*3.01,2),"") ->  | C114: =IF(AND($C$11<>"",$C$13<>""),ROUND($C$11*3.5,2),"") ->  | D114: 0.05559
B115: =IF(AND($C$11<>"",$C$13<>""),ROUND($C$11*3.51,2),"") ->  | C115: =IF(AND($C$11<>"",$C$13<>""),ROUND($C$11*4,2),"") ->  | D115: 0.05747
B116: =IF(AND($C$11<>"",$C$13<>""),ROUND($C$11*4.01,2),"") ->  | C116: 99999999 | D116: 0.06422
B119: Aportación INFONAVIT
B120: Salario base de aportación
B121: (x) Cuota de aportación
B122: (=) Prima correspondiente
B123: (x) Días a cotizar - faltas (hasta 7 días)
B124: (=) Cuota patronal
B127: Resumen periodo bimestral
C128: Patronal | D128: Obrera | E128: Suma
B129: Importe total
B130: Retiro
B131: Cesantía en Edad Avanzada y Vejez
B132: Aportación INFONAVIT

Sheet EMISIONM (hidden)
B2: Determinación de las cuotas obrero patronales mensuales
C3: Año de cálculo
C4: Mes
C5: Valor de la UMA | I5: Ir al MENÚ
C6: Prima de riesgo | J6: Enfermedad y maternidad excedente 3 veces el valor de la UMA | L6: Enfermedad y maternidad prestaciones en dinero | N6: Enfermedad y maternidad gastos médicos pensionados | Q6: Invalidez y vida
I7: 0.204 | J7: 0.011 | K7: 0.004 | L7: 0.007 | M7: 0.0025 | N7: 0.0105 | O7: 0.00375 | Q7: 0.0175 | R7: 0.00625 | S7: 0.01
B8: NSS | C8: Nombre | D8: Días del mes | E8: Faltas | F8: Incapacidades | G8: Salario diario (opcional) | H8: Salario base de cotización | I8: Cuota Fija | J8: Excedente Patronal | K8: Excedente Obrero | L8: Prestaciones en Dinero Patronal | M8: Prestaciones en Dinero Obrero | N8: Gastos Médicos y Pensionados Patronal | O8: Gastos Médicos y Pensionados Obrero | P8: Riesgos de Trabajo | Q8: Invalidez y Vida Patronal | R8: Invalidez y Vida Obrero | S8: Guarderías y Prestaciones Sociales | T8: Total

Sheet EMISIONB (hidden)
B2: Determinación de las cuotas obrero patronales bimestral
C3: Año de cálculo
C4: Bimestre
C5: Salarío mínimo general de la zona | H5: Ir al MENÚ
C6: Valor de la UMA
J7: Cesantía en Edad Avanzada y Vejez
I8: 0.02 | K8: 0.01125 | M8: 0.05
B9: NSS | C9: Nombre | D9: Días del bimestre | E9: Faltas | F9: Incapacidades | G9: Salario diario | H9: Salario base de cotización | I9: Retiro | J9: Cesantía en Edad Avanzada y Vejez Patronal | K9: Cesantía en Edad Avanzada y Vejez Obrero | L9: Subtotal RCV | M9: Aportación Patronal INFONAVIT | N9: Tipo de Descuento | O9: Valor de Descuento | P9: Número de Crédito | Q9: Amortización | R9: Subtotal Infonavit | S9: Total

Sheet RESUMEN IMSS (hidden)
F3: Ir al MENÚ
B5: Resumen Emisión IMSS | E5: Resumen Emisión RCV
B7: Periodo Mensual | E7: Bimestre
B8: Días | E8: Número de acreditados
B9: Total Cotizantes IMSS
B10: Prima de Riesgos de Trabajo | E10: Total Aportación Pat. Infonavit
B12: Cuota Fija | E12: Aportación Pat. S/C Infonavit
B13: Excedente Patronal | E13: Aportación Pat. C/C Infonavit
B14: Excedente Obrero | E14: Amortización
B15: Prestaciones en Dinero Patronal | E15: Aport. Pat. C/C Det. Infonavit mas Amort.
B16: Prestaciones en Dinero Obrero | E16: Suma Infonavit
B17: Gastos Médicos y Pensionados Patronal
B18: Gastos Médicos y Pensionados Obrero | E18: Retiro
B19: Riesgos de Trabajo | E19: Cesantía y vejez Patronal
B20: Invalidez y Vida Patronal | E20: Cesantía y vejez Obrero
B21: Invalidez y Vida Obrero | E21: Suma RCV
B22: Guarderías y Prestaciones Sociales
B23: Total | E23: Total

Sheet TARIFA (hidden)
C3: Ir al MENÚ
G4: Convertir a: | H4: =IF(BASES!D209<>"",BASES!D209,30) -> 30
B6: V. Tarifa aplicable durante 2025 para el cálculo de los pagos provisionales mensuales a que se refieren los artículos 96 de la Ley del ISR y 175 de su Reglamento, así como la regla 3.12.2.
B7: Límite inferior | C7: Límite superior | D7: Cuota fija | E7: Por ciento para aplicarse sobre el excedente del límite inferior | G7: Límite inferior | H7: Límite superior | I7: Cuota fija | J7: Por ciento para aplicarse sobre el excedente del límite inferior
B8: $ | C8: $ | D8: $ | E8: % | G8: $ | H8: $ | I8: $ | J8: %
B9: 0.01 | C9: 746.04 | D9: 0 | E9: 1.92 | G9: 0.01 | H9: =IFERROR(IF($H$4<30,ROUND(C9/30.4*$H$4,2),C9),C9) -> 746.04 | I9: =IFERROR(IF($H$4<30,ROUND(D9/30.4*$H$4,2),D9),D9) -> 0 | J9: 1.92
B10: 746.05 | C10: 6332.05 | D10: 14.32 | E10: 6.4 | G10: =IFERROR(H9+0.01,H9) -> 746.05 | H10: =IFERROR(IF($H$4<30,ROUND(C10/30.4*$H$4,2),C10),C10) -> 6332.05 | I10: =IFERROR(IF($H$4<30,ROUND(D10/30.4*$H$4,2),D10),D10) -> 14.32 | J10: 6.4
B11: 6332.06 | C11: 11128.01 | D11: 371.83 | E11: 10.88 | G11: =IFERROR(H10+0.01,H10) -> 6332.06 | H11: 11128.01 | I11: 371.83 | J11: 10.88
B12: 11128.02 | C12: 12935.82 | D12: 893.63 | E12: 16 | G12: 11128.02 | H12: 12935.82 | I12: 893.63 | J12: 16
B13: 12935.83 | C13: 15487.71 | D13: 1182.88 | E13: 17.92 | G13: 12935.83 | H13: 15487.71 | I13: 1182.88 | J13: 17.92
B14: 15487.72 | C14: 31236.49 | D14: 1640.18 | E14: 21.36 | G14: 15487.72 | H14: 31236.49 | I14: 1640.18 | J14: 21.36
B15: 31236.5 | C15: 49233 | D15: 5004.12 | E15: 23.52 | G15: 31236.5 | H15: 49233 | I15: 5004.12 | J15: 23.52
B16: 49233.01 | C16: 93993.9 | D16: 9236.89 | E16: 30 | G16: 49233.01 | H16: 93993.9 | I16: 9236.89 | J16: 30
B17: 93993.91 | C17: 125325.2 | D17: 22665.17 | E17: 32 | G17: 93993.91 | H17: 125325.2 | I17: 22665.17 | J17: 32
B18: 125325.21 | C18: 375975.61 | D18: 32691.18 | E18: 34 | G18: 125325.21 | H18: 375975.61 | I18: 32691.18 | J18: 34
B19: 375975.62 | C19: En adelante | D19: 117912.32 | E19: 35 | G19: 375975.62 | H19: En adelante | I19: 117912.32 | J19: 35
B23: Valor de la UMA mensual | D23: 3300.53
B24: % del subsidio al empleo | D24: =GENERALES1!C31 -> 0.138
B25: Importe para subsidio | D25: =GENERALES1!C30 -> 10171
B27: % subsidio al empleo Enero | E27: =GENERALES1!C32 -> 0.1439
B177: 1
B178: 2
B179: 3
B180: 4
B181: 5
B182: 6
B183: 7
B184: 8
B185: 9
B186: 10
B187: 11
B188: 12
B189: 13
B190: 14
B191: 15
B192: 16
B193: 17
B194: 18
B195: 19
B196: 20
B197: 21
B198: 22
B199: 23
B200: 24
B201: 25
B202: 26
B203: 27
B204: 28
B205: 29
B206: 30
B207: 31

Sheet GENERALES1 (hidden)
B3: Ir al MENÚ
B5: Tabla de vacaciones para trabajadores de no buques (art. 76 LFT)
B6: Años
B7: Mínimo | C7: Máximo | D7: Días
B8: 0 | C8: 1 | D8: 12
B9: =C8+0.01 -> 1.01 | C9: 2 | D9: =D8+2 -> 14
B10: =C9+0.01 -> 2.01 | C10: 3 | D10: =D9+2 -> 16
B11: 3.01 | C11: 4 | D11: 18
B12: 4.01 | C12: 5 | D12: 20
B13: 5.01 | C13: =C12+5 -> 10 | D13: 22
B14: 10.01 | C14: 15 | D14: 24
B15: 15.01 | C15: 20 | D15: 26
B16: 20.01 | C16: 25 | D16: 28
B17: 25.01 | C17: 30 | D17: 30
B18: 30.01 | C18: 35 | D18: 32
B20: Salario mínimo
B21: Zona Libre de la Frontera Norte | C21: 419.88
B22: Zona del Salario Mínimo General | C22: 278.8
B24: Valor de la UMA
B25: Enero | C25: 108.57
B26: Febrero en adelante | C26: 113.14
B28: Valor de la UMA mensual enero | C28: 3300.53
B29: Valor de la UMA mensual posterior | C29: 3439.46
B30: Total base ISR para subsidio | C30: 10171
B31: % del subsidio al empleo | C31: 0.138
B32: % Subsidio al empleo Enero | C32: 0.1439
B35: Enero | C35: =IFERROR(DAY(EOMONTH(DATE($C$4,ROW($A1),1),0)),0) -> 31
B36: Febrero | C36: =IFERROR(DAY(EOMONTH(DATE($C$4,ROW($A2),1),0)),0) -> 28
B37: Marzo | C37: 31
B38: Abril | C38: 30
B39: Mayo | C39: 31
B40: Junio | C40: 30
B41: Julio | C41: 31
B42: Agosto | C42: 31
B43: Septiembre | C43: 30
B44: Octubre | C44: 31
B45: Noviembre | C45: 30
B46: Diciembre | C46: 31

Sheet GENERAL (hidden)
B4: Enero | C4: =IFERROR(DAY(EOMONTH(DATE(EMISIONM!$D$3,ROW($A1),1),0)),"") -> 31
B5: Febrero | C5: =IFERROR(DAY(EOMONTH(DATE(EMISIONM!$D$3,ROW($A2),1),0)),"") -> 28
B6: Marzo | C6: =IFERROR(DAY(EOMONTH(DATE(EMISIONM!$D$3,ROW($A3),1),0)),"") -> 31
B7: Abril | C7: =IFERROR(DAY(EOMONTH(DATE(EMISIONM!$D$3,ROW($A4),1),0)),"") -> 30
B8: Mayo | C8: =IFERROR(DAY(EOMONTH(DATE(EMISIONM!$D$3,ROW($A5),1),0)),"") -> 31
B9: Junio | C9: =IFERROR(DAY(EOMONTH(DATE(EMISIONM!$D$3,ROW($A6),1),0)),"") -> 30
B10: Julio | C10: =IFERROR(DAY(EOMONTH(DATE(EMISIONM!$D$3,ROW($A7),1),0)),"") -> 31
B11: Agosto | C11: =IFERROR(DAY(EOMONTH(DATE(EMISIONM!$D$3,ROW($A8),1),0)),"") -> 31
B12: Septiembre | C12: =IFERROR(DAY(EOMONTH(DATE(EMISIONM!$D$3,ROW($A9),1),0)),"") -> 30
B13: Octubre | C13: =IFERROR(DAY(EOMONTH(DATE(EMISIONM!$D$3,ROW($A10),1),0)),"") -> 31
B14: Noviembre | C14: =IFERROR(DAY(EOMONTH(DATE(EMISIONM!$D$3,ROW($A11),1),0)),"") -> 30
B15: Diciembre | C15: =IFERROR(DAY(EOMONTH(DATE(EMISIONM!$D$3,ROW($A12),1),0)),"") -> 31
B18: Enero - Febrero | C18: =IFERROR(C4+C5,"") -> 59
B19: Marzo - Abril | C19: =IFERROR(C6+C7,"") -> 61
B20: Mayo - Junio | C20: =IFERROR(C8+C9,"") -> 61
B21: Julio - Agosto | C21: =IFERROR(C10+C11,"") -> 62
B22: Septiembre - Octubre | C22: =IFERROR(C12+C13,"") -> 61
B23: Noviembre - Diciembre | C23: =IFERROR(C14+C15,"") -> 61
B28: Cesantía en edad avanzada y vejez
B29: Valor mímino | C29: Valor máximo | D29: % a aplicar
B30: =IFERROR(EMISIONB!$D$5,"") -> 0 | C30: =IFERROR(EMISIONB!$D$5,"") -> 0 | D30: =IFERROR(VLOOKUP(B30,$B$40:$J$48,VLOOKUP(EMISIONB!$D$3,GENERAL!$B$51:$C$58,2,FALSE),FALSE),"") -> 
B31: =IFERROR(ROUND(EMISIONB!$D$5*1.01,2),"") -> 0 | C31: =IFERROR(ROUND(EMISIONB!$D$6*1.5,2),"") -> 0 | D31: =IFERROR(VLOOKUP(B31,$B$40:$J$48,VLOOKUP(EMISIONB!$D$3,GENERAL!$B$51:$C$58,2,FALSE),FALSE),"") -> 
B32: =IFERROR(ROUND(EMISIONB!$D$6*1.51,2),"") -> 0 | C32: =IFERROR(ROUND(EMISIONB!$D$6*2,2),"") -> 0 | D32: =IFERROR(VLOOKUP(B32,$B$40:$J$48,VLOOKUP(EMISIONB!$D$3,GENERAL!$B$51:$C$58,2,FALSE),FALSE),"") -> 
B33: =IFERROR(ROUND(EMISIONB!$D$6*2.01,2),"") -> 0 | C33: =IFERROR(ROUND(EMISIONB!$D$6*2.5,2),"") -> 0 | D33: =IFERROR(VLOOKUP(B33,$B$40:$J$48,VLOOKUP(EMISIONB!$D$3,GENERAL!$B$51:$C$58,2,FALSE),FALSE),"") -> 
B34: =IFERROR(ROUND(EMISIONB!$D$6*2.51,2),"") -> 0 | C34: =IFERROR(ROUND(EMISIONB!$D$6*3,2),"") -> 0 | D34: =IFERROR(VLOOKUP(B34,$B$40:$J$48,VLOOKUP(EMISIONB!$D$3,GENERAL!$B$51:$C$58,2,FALSE),FALSE),"") -> 
B35: =IFERROR(ROUND(EMISIONB!$D$6*3.01,2),"") -> 0 | C35: =IFERROR(ROUND(EMISIONB!$D$6*3.5,2),"") -> 0 | D35: =IFERROR(VLOOKUP(B35,$B$40:$J$48,VLOOKUP(EMISIONB!$D$3,GENERAL!$B$51:$C$58,2,FALSE),FALSE),"") -> 
B36: =IFERROR(ROUND(EMISIONB!$D$6*3.51,2),"") -> 0 | C36: =IFERROR(ROUND(EMISIONB!$D$6*4,2),"") -> 0 | D36: =IFERROR(VLOOKUP(B36,$B$40:$J$48,VLOOKUP(EMISIONB!$D$3,GENERAL!$B$51:$C$58,2,FALSE),FALSE),"") -> 
B37: =IFERROR(ROUND(EMISIONB!$D$6*4.01,2),"") -> 0 | C37: 99999999 | D37: =IFERROR(VLOOKUP(B37,$B$40:$J$48,VLOOKUP(EMISIONB!$D$3,GENERAL!$B$51:$C$58,2,FALSE),FALSE),"") -> 
C39: % a aplicar
B40: Valor mímino | C40: 2023 | D40: 2024 | E40: 2025 | F40: 2026 | G40: 2027 | H40: 2028 | I40: 2029 | J40: 2030
B41: =IFERROR(EMISIONB!$D$5,"") -> 0 | C41: 0.0315 | D41: 0.0315 | E41: 0.0315 | F41: 0.0315 | G41: 0.0315 | H41: 0.0315 | I41: 0.0315 | J41: 0.0315
B42: =IFERROR(ROUND(EMISIONB!$D$5*1.01,2),"") -> 0 | C42: 0.03281 | D42: 0.03413 | E42: 0.03544 | F42: 0.03676 | G42: 0.03807 | H42: 0.03939 | I42: 0.0407 | J42: 0.04202
B43: =IFERROR(ROUND(EMISIONB!$D$6*1.51,2),"") -> 0 | C43: 0.03575 | D43: 0.04 | E43: 0.04426 | F43: 0.04851 | G43: 0.05276 | H43: 0.05701 | I43: 0.06126 | J43: 0.06552
B44: =IFERROR(ROUND(EMISIONB!$D$6*2.01,2),"") -> 0 | C44: 0.03751 | D44: 0.04353 | E44: 0.04954 | F44: 0.05556 | G44: 0.06157 | H44: 0.06759 | I44: 0.0736 | J44: 0.07962
B45: =IFERROR(ROUND(EMISIONB!$D$6*2.51,2),"") -> 0 | C45: 0.03869 | D45: 0.04588 | E45: 0.05307 | F45: 0.06026 | G45: 0.06745 | H45: 0.07464 | I45: 0.08183 | J45: 0.08902
B46: =IFERROR(ROUND(EMISIONB!$D$6*3.01,2),"") -> 0 | C46: 0.03953 | D46: 0.04756 | E46: 0.05559 | F46: 0.06361 | G46: 0.07164 | H46: 0.07967 | I46: 0.0877 | J46: 0.09573
B47: =IFERROR(ROUND(EMISIONB!$D$6*3.51,2),"") -> 0 | C47: 0.04016 | D47: 0.04882 | E47: 0.05747 | F47: 0.06613 | G47: 0.07479 | H47: 0.08345 | I47: 0.09211 | J47: 0.10077
B48: =IFERROR(ROUND(EMISIONB!$D$6*4.01,2),"") -> 0 | C48: 0.04241 | D48: 0.05331 | E48: 0.06422 | F48: 0.07513 | G48: 0.08603 | H48: 0.09694 | I48: 0.10784 | J48: 0.11875
B51: 2023 | C51: 2
B52: 2024 | C52: 3
B53: 2025 | C53: 4
B54: 2026 | C54: 5
B55: 2027 | C55: 6
B56: 2028 | C56: 7
B57: 2029 | C57: 8
B58: 2030 | C58: 9
B61: Tabla de vacaciones
B62: Mímino | C62: Máximo | D62: Días | F62: Área geográfica | G62: Salario mímino
B63: 0 | C63: 1 | D63: 12 | F63: Zona Libre de la Frontera Norte | G63: 419.88
B64: =C63+0.01 -> 1.01 | C64: =C63+1 -> 2 | D64: =D63+2 -> 14 | F64: Zona del Salario Mínimo General | G64: 278.8
B65: =C64+0.01 -> 2.01 | C65: =C64+1 -> 3 | D65: =D64+2 -> 16
B66: 3.01 | C66: =C65+1 -> 4 | D66: 18
B67: 4.01 | C67: =C66+1 -> 5 | D67: 20 | F67: Valor de la UMA | G67: Importe
B68: 5.01 | C68: =C67+5 -> 10 | D68: 22 | F68: Enero | G68: 103.74
B69: 10.01 | C69: =C68+5 -> 15 | D69: 24 | F69: Febrero en adelante | G69: 108.57
B70: 15.01 | C70: 20 | D70: 26
B71: 20.01 | C71: 25 | D71: 28 | F71: Pediodicidad
B72: 25.01 | C72: 30 | D72: 30 | F72: Diario | G72: 1
B73: 30.01 | C73: 35 | D73: 32 | F73: Semanal | G73: 7
B74: 35.01 | C74: 40 | D74: 34 | F74: Catorcenal | G74: 10
B75: 40.01 | C75: 45 | D75: 36 | F75: Quincenal | G75: 14
B76: 45.01 | C76: 50 | D76: 38 | F76: Mensual | G76: 30
B77: 50.01 | C77: 55 | D77: 40
B78: 55.01 | C78: 60 | D78: 42
B79: 60.01 | C79: 65 | D79: 44
B80: 65.01 | C80: 70 | D80: 46
F83: www.acfmsc.com
B87: 1
B88: 2
B89: 3
B90: 4
B91: 5
B92: 6
B93: 7
B94: 8
B95: 9
B96: 10
B97: 11
B98: 12
B99: 13
B100: 14
B101: 15
B102: 16
B103: 17
B104: 18
B105: 19
B106: 20
B107: 21
B108: 22
B109: 23
B110: 24
B111: 25
B112: 26
B113: 27
B114: 28
B115: 29
B116: 30
B117: 31
